Workbook

Sheet Hoja1
A1: =+[1]PPNE1!B1 -> 0
A2: =+[1]PPNE1!B2 -> Servicio Nacional de Salud
A3: =+[1]PPNE1!B3 -> Dirección de Planificación y Desarrollo
A4: Estimación de Ingresos
A5: =+[1]PPNE1!C5 -> 2022
A6: Servicio Regional de Salud: | E6: =+[1]PPNE1!B6 -> Norcentral
A7: CEAS: | E7: =+[1]PPNE1!B7 -> HOSPITAL PROVINCIAL RICARDO LIMARDO
A8: Objeto | B8: Cuenta | C8: Sub-Cuenta | D8: Auxiliar | E8: Descripción Ingresos por Cuenta | F8: Valor RD$ | G8: %
A9: 3 | E9: Donaciones | F9: =+F10 -> 3,975,000.00 | G9: =G10 -> 0.89
B10: 31 | E10: Aportes y Donaciones | F10: =SUM(F11:F12) -> 3,975,000.00 | G10: =G11+G12 -> 0.89
C11: 311 | E11: Donaciones recibidas de otros Organismos | F11: 3,975,000.00 | G11: =IFERROR(F11/$F$30*100,"0.00") -> 0.89
C12: 312 | E12: Aporte de los Hogares | G12: =IFERROR(F12/$F$30*100,"0.00") -> 0.00
A13: 4 | E13: Transferencias | F13: =+F14+F19 -> 280,880,027.48 | G13: =G14+G19 -> 62.74
B14: 41 | E14: Transferencias Corrientes de la Administración Central | F14: =SUM(F15:F18) -> 280,880,027.48 | G14: =SUM(G15:G18) -> 62.74
C15: 411 | E15: Aportes SNS Nomina | F15: 251,280,027.48 | G15: =IFERROR(F15/$F$30*100,"0.00") -> 56.13
C16: 412 | E16: Anticipos Financieros | F16: 29,600,000.00 | G16: =IFERROR(F16/$F$30*100,"0.00") -> 6.61
C17: 413 | E17: Aportes SNS Medicamento | G17: =IFERROR(F17/$F$30*100,"0.00") -> 0.00
C18: 414 | E18: Transferencias Corrientes | G18: =IFERROR(F18/$F$30*100,"0.00") -> 0.00
B19: 42 | E19: Transferencia de Capital de la Administración Central | F19: =SUM(F20:F21) -> 0.00 | G19: =G20+G21 -> 0.00
C20: 421 | E20: Aportes SNS Equipamiento | G20: =IFERROR(F20/$F$30*100,"0.00") -> 0.00
C21: 422 | E21: Aportes para otros gastos de inversión del SNS | G21: =IFERROR(F21/$F$30*100,"0.00") -> 0.00
A22: 5 | E22: Otros Ingresos | F22: =+F23 -> 162,815,630.04 | G22: =G23 -> 36.37
B23: 52 | E23: Venta de Servicios | F23: =SUM(F24:F29) -> 162,815,630.04 | G23: =SUM(G24:G29) -> 36.37
C24: 521 | E24: Venta de Servicios a SENASA por afiliados regimen subsidiado | F24: 138,689,030.99 | G24: =IFERROR(F24/$F$30*100,"0.00") -> 30.98
C25: 522 | E25: Venta de Servicios a SENASA por afiliados regimen contributivo | F25: 9,066,691.81 | G25: 2.03
C26: 523 | E26: Venta de Servicios a otras ARS por atencion a Regimen contributivo | F26: 7,021,328.03 | G26: 1.57
C27: 524 | E27: Venta de Servicios a ARL | G27: 0.00
C28: 525 | E28: Venta de Servicios a Compañias aseguradoras | G28: 0.00
C29: 526 | E29: Venta de servicios a otros | F29: 8,038,579.21 | G29: 1.80
E30: Total Ingresos | F30: =+F22+F13+F9 -> 447,670,657.52 | G30: =+G22+G13+G9 -> 100.00

Sheet Hoja2
A1: =+[1]PPNE1!B1 -> 0
A2: Servicio Nacional de Salud
A3: Dirección de Planificación y Desarrollo
A4: Consolidado Presupuesto Estimado de Ingresos y Gastos Nivel Especializado por Actividad Especifica
A5: =+[1]PPNE1!C5 -> 2022
A6: Servicio Regional de Salud: | F6: =+[1]PPNE1!B6 -> Norcentral
A7: Establecimiento: | F7: =+[1]PPNE1!B7 -> HOSPITAL PROVINCIAL RICARDO LIMARDO
A8: Estimación de Ingresos
A9: Anticipos Financieros | G9: =+[1]PPNE3!F16 -> 29,600,000.00
A10: Venta de Servicios y Otros Ingresos | G10: =+[1]PPNE3!F22 -> 162,815,630.04
A11: Aportes SNS Nómina | G11: =+[1]PPNE3!F15 -> 251,280,027.48
A12: Otros Aportes | G12: =[1]PPNE3!F11+[1]PPNE3!F12+[1]PPNE3!F17+[1]PPNE3!F20+[1]PPNE3!F21 -> 3,975,000.00
A13: Transferencias Corrientes | G13: =+[1]PPNE3!F18 -> 0.00
A14: Total Ingresos RD$ | G14: =SUM(G9:G13) -> 447,670,657.52
A15: Estimación de Gastos
A16: Tipo | B16: Objeto | C16: Cuenta | D16: Sub-Cuenta | E16: Auxiliar | F16: Descripción Gasto por Cuenta | G16: Consultas Externa | H16: Emergencias | I16: Hospitalización | J16: Apoyo Diagnóstico | L16: Servicios de Apoyo | N16: Total RD$ | O16: %
J17: Servicios de Laboratorios y Banco de Sangre | K17: Servicios de Imágenes RX | L17: Gestión de Usuario y Educación para la Salud | M17: Gestión Técnica y Administrativa
A18: 2 | F18: Egresos | G18: 1,218,088.01 | H18: 42,645,189.50 | I18: 57,698,404.86 | J18: 4,613,476.25 | K18: 10,842,376.25 | L18: 1,068,238.01 | M18: 328,970,206.25 | N18: 447,670,657.52 | O18: 100.00
A19: 2 | B19: 1 | F19: Servicios Personales | G19: 0.00 | H19: 0.00 | I19: 0.00 | J19: 0.00 | K19: 0.00 | L19: 0.00 | M19: 307,470,601.70 | N19: 307,470,601.70 | O19: 68.68
A20: 2 | B20: 1 | C20: 1 | F20: Remuneraciones | G20: 0.00 | H20: 0.00 | I20: 0.00 | J20: 0.00 | K20: 0.00 | L20: 0.00 | M20: 295,105,681.82 | N20: 295,105,681.82 | O20: 65.92
A21: 2 | B21: 1 | C21: 1 | D21: 1 | F21: Remuneraciones al personal fijo | G21: =SUM(G22:G27) -> 0.00 | H21: 0.00 | I21: 0.00 | J21: 0.00 | K21: 0.00 | L21: 0.00 | M21: 266,757,732.56 | N21: 266,757,732.56 | O21: 59.59
A22: 2 | B22: 1 | C22: 1 | D22: 1 | E22: `01 | F22: Sueldos fijos | M22: 251,280,027.48 | N22: =SUBTOTAL(9,G22:M22) -> 251,280,027.48 | O22: =IFERROR(N22/$N$18*100,"0.00") -> 56.13
A23: 2 | B23: 1 | C23: 1 | D23: 1 | E23: `02 | F23: Sueldos a medicos | N23: 0.00 | O23: 0.00
A24: 2 | B24: 1 | C24: 1 | D24: 1 | E24: `03 | F24: Ascenso a militires | N24: 0.00 | O24: 0.00
A25: 2 | B25: 1 | C25: 1 | D25: 1 | E25: `04 | F25: Nuevas plazas maestros | N25: 0.00 | O25: 0.00
A26: 2 | B26: 1 | C26: 1 | D26: 1 | E26: `05 | F26: Incentivos y escalafón | M26: 15,477,705.08 | N26: 15,477,705.08 | O26: 3.46
A27: 2 | B27: 1 | C27: 1 | D27: 1 | E27: `06 | F27: Nuevas plazas a medicos | N27: 0.00 | O27: 0.00
A28: 2 | B28: 1 | C28: 1 | D28: 2 | F28: Remuneraciones al personal con carácter transitorio | G28: =SUM(G29:G35) -> 0.00 | H28: 0.00 | I28: 0.00 | J28: 0.00 | K28: 0.00 | L28: 0.00 | M28: 25,364,095.20 | N28: 25,364,095.20 | O28: 5.67
A29: 2 | B29: 1 | C29: 1 | D29: 2 | E29: `01 | F29: Sueldos al personal contratado y/o igualado | M29: 25,364,095.20 | N29: =SUBTOTAL(9,G29:M29) -> 25,364,095.20 | O29: =IFERROR(N29/$N$18*100,"0.00") -> 5.67
A30: 2 | B30: 1 | C30: 1 | D30: 2 | E30: `02 | F30: Sueldos de personal nominal | N30: 0.00 | O30: 0.00
A31: 2 | B31: 1 | C31: 1 | D31: 2 | E31: `03 | F31: Suplencias | N31: 0.00 | O31: 0.00
A32: 2 | B32: 1 | C32: 1 | D32: 2 | E32: `04 | F32: Sueldos al personal por servicios especiales | N32: 0.00 | O32: 0.00
A33: 2 | B33: 1 | C33: 1 | D33: 2 | E33: `05 | F33: Sueldo al personal nominal en período probatorio | N33: 0.00 | O33: 0.00
A34: 2 | B34: 1 | C34: 1 | D34: 2 | E34: `06 | F34: Jornales | N34: 0.00 | O34: 0.00
A35: 2 | B35: 1 | C35: 1 | D35: 2 | E35: `07 | F35: Sobrejornales | N35: 0.00 | O35: 0.00
A36: 2 | B36: 1 | C36: 1 | D36: 3 | F36: Sueldos al personal fijo en trámite de pensiones | G36: =G37 -> 0.00 | H36: 0.00 | I36: 0.00 | J36: 0.00 | K36: 0.00 | L36: 0.00 | M36: 0.00 | N36: 0.00 | O36: 0.00
A37: 2 | B37: 1 | C37: 1 | D37: 3 | E37: `01 | F37: Sueldos al personal fijo en trámite de pensiones | N37: =SUBTOTAL(9,G37:M37) -> 0.00 | O37: =IFERROR(N37/$N$18*100,"0.00") -> 0.00
A38: 2 | B38: 1 | C38: 1 | D38: 4 | F38: Sueldo anual No. 13 | G38: =G39 -> 0.00 | H38: 0.00 | I38: 0.00 | J38: 0.00 | K38: 0.00 | L38: 0.00 | M38: 2,983,854.06 | N38: 2,983,854.06 | O38: 0.67
A39: 2 | B39: 1 | C39: 1 | D39: 4 | E39: `01 | F39: Sueldo anual No. 13 | M39: 2,983,854.06 | N39: =SUBTOTAL(9,G39:M39) -> 2,983,854.06 | O39: =IFERROR(N39/$N$18*100,"0.00") -> 0.67
A40: 2 | B40: 1 | C40: 1 | D40: 5 | F40: Prestacianes economicas | G40: =SUM(G41:G44) -> 0.00 | H40: 0.00 | I40: 0.00 | J40: 0.00 | K40: 0.00 | L40: 0.00 | M40: 0.00 | N40: 0.00 | O40: 0.00
A41: 2 | B41: 1 | C41: 1 | D41: 5 | E41: `01 | F41: Prestacianes economicas | N41: =SUBTOTAL(9,G41:M41) -> 0.00 | O41: =IFERROR(N41/$N$18*100,"0.00") -> 0.00
A42: 2 | B42: 1 | C42: 1 | D42: 5 | E42: `02 | F42: Pago de porcentaje por desvinculación de cargo | N42: =SUBTOTAL(9,G42:M42) -> 0.00 | O42: =IFERROR(N42/$N$18*100,"0.00") -> 0.00
A43: 2 | B43: 1 | C43: 1 | D43: 5 | E43: `03 | F43: Prestacion laboral por desvinculación | N43: =SUBTOTAL(9,G43:M43) -> 0.00 | O43: =IFERROR(N43/$N$18*100,"0.00") -> 0.00
A44: 2 | B44: 1 | C44: 1 | D44: 5 | E44: `04 | F44: Proporción de vacaciones no disfrutadas | N44: =SUBTOTAL(9,G44:M44) -> 0.00 | O44: =IFERROR(N44/$N$18*100,"0.00") -> 0.00
A45: 2 | B45: 1 | C45: 1 | D45: 6 | F45: Vacaciones | G45: =G46 -> 0.00 | H45: 0.00 | I45: 0.00 | J45: 0.00 | K45: 0.00 | L45: 0.00 | M45: 0.00 | N45: 0.00 | O45: 0.00
A46: 2 | B46: 1 | C46: 1 | D46: 6 | E46: `01 | F46: Vacaciones | N46: =SUBTOTAL(9,G46:M46) -> 0.00 | O46: =IFERROR(N46/$N$18*100,"0.00") -> 0.00
A47: 2 | B47: 1 | C47: 2 | F47: Sobresueldos | G47: =+G48+G50+G61 -> 0.00 | H47: 0.00 | I47: 0.00 | J47: 0.00 | K47: 0.00 | L47: 0.00 | M47: 7,864,919.88 | N47: 7,864,919.88 | O47: 1.76
A48: 2 | B48: 1 | C48: 2 | D48: 1 | F48: Primas por antigüedad | G48: =G49 -> 0.00 | H48: 0.00 | I48: 0.00 | J48: 0.00 | K48: 0.00 | L48: 0.00 | M48: 0.00 | N48: 0.00 | O48: 0.00
A49: 2 | B49: 1 | C49: 2 | D49: 1 | E49: `01 | F49: Primas por antigüedad | N49: =SUBTOTAL(9,G49:M49) -> 0.00 | O49: =IFERROR(N49/$N$18*100,"0.00") -> 0.00
A50: 2 | B50: 1 | C50: 2 | D50: 2 | F50: Compensación | G50: =SUM(G51:G60) -> 0.00 | H50: 0.00 | I50: 0.00 | J50: 0.00 | K50: 0.00 | L50: 0.00 | M50: 7,864,919.88 | N50: 7,864,919.88 | O50: 1.76
A51: 2 | B51: 1 | C51: 2 | D51: 2 | E51: `01 | F51: Compensación por gastos de alimentación | N51: =SUBTOTAL(9,G51:M51) -> 0.00 | O51: =IFERROR(N51/$N$18*100,"0.00") -> 0.00
A52: 2 | B52: 1 | C52: 2 | D52: 2 | E52: `02 | F52: Compensación por horas extraordinarias | N52: 0.00 | O52: 0.00
A53: 2 | B53: 1 | C53: 2 | D53: 2 | E53: `03 | F53: Pago de horas extraordinarias, Horas extraordinarias fin de año (Reglamento 523-09) | N53: 0.00 | O53: 0.00
A54: 2 | B54: 1 | C54: 2 | D54: 2 | E54: `04 | F54: Prima de transporte | N54: 0.00 | O54: 0.00
A55: 2 | B55: 1 | C55: 2 | D55: 2 | E55: `05 | F55: Compensación servicios de Seguridad | N55: 0.00 | O55: 0.00
A56: 2 | B56: 1 | C56: 2 | D56: 2 | E56: `06 | F56: Compensación por resultados | N56: 0.00 | O56: 0.00
A57: 2 | B57: 1 | C57: 2 | D57: 2 | E57: `07 | F57: Compensación por distancia | N57: 0.00 | O57: 0.00
A58: 2 | B58: 1 | C58: 2 | D58: 2 | E58: `08 | F58: Compensaciones especiales | M58: 7,864,919.88 | N58: 7,864,919.88 | O58: 1.76
A59: 2 | B59: 1 | C59: 2 | D59: 2 | E59: `09 | F59: Bono por desempeño | N59: 0.00 | O59: 0.00
A60: 2 | B60: 1 | C60: 2 | D60: 2 | E60: `10 | F60: Beneficio , Acuerdo de desempeños institucionales (Reglamento 423-12) | N60: 0.00 | O60: 0.00
A61: 2 | B61: 1 | C61: 2 | D61: 3 | F61: Especialismos | G61: =G62 -> 0.00 | H61: 0.00 | I61: 0.00 | J61: 0.00 | K61: 0.00 | L61: 0.00 | M61: 0.00 | N61: 0.00 | O61: 0.00
A62: 2 | B62: 1 | C62: 2 | D62: 3 | E62: `01 | F62: Especialismos | N62: =SUBTOTAL(9,G62:M62) -> 0.00 | O62: =IFERROR(N62/$N$18*100,"0.00") -> 0.00
A63: 2 | B63: 1 | C63: 3 | F63: Dietas y Gastos de Representación | G63: =G64+G67 -> 0.00 | H63: 0.00 | I63: 0.00 | J63: 0.00 | K63: 0.00 | L63: 0.00 | M63: 0.00 | N63: 0.00 | O63: 0.00
A64: 2 | B64: 1 | C64: 3 | D64: 1 | F64: Dietas | G64: =SUM(G65:G66) -> 0.00 | H64: 0.00 | I64: 0.00 | J64: 0.00 | K64: 0.00 | L64: 0.00 | M64: 0.00 | N64: 0.00 | O64: 0.00
A65: 2 | B65: 1 | C65: 3 | D65: 1 | E65: `01 | F65: Dietas en el país | N65: =SUBTOTAL(9,G65:M65) -> 0.00 | O65: =IFERROR(N65/$N$18*100,"0.00") -> 0.00
A66: 2 | B66: 1 | C66: 3 | D66: 1 | E66: `02 | F66: Dietas en el exterior | N66: =SUBTOTAL(9,G66:M66) -> 0.00 | O66: =IFERROR(N66/$N$18*100,"0.00") -> 0.00
A67: 2 | B67: 1 | C67: 3 | D67: 2 | F67: Gastos de representación | G67: =SUM(G68:G69) -> 0.00 | H67: 0.00 | I67: 0.00 | J67: 0.00 | K67: 0.00 | L67: 0.00 | M67: 0.00 | N67: 0.00 | O67: 0.00
A68: 2 | B68: 1 | C68: 3 | D68: 2 | E68: `01 | F68: Gastos de representación en el país | N68: =SUBTOTAL(9,G68:M68) -> 0.00 | O68: =IFERROR(N68/$N$18*100,"0.00") -> 0.00
A69: 2 | B69: 1 | C69: 3 | D69: 2 | E69: `02 | F69: Gastos de representación en el exterior | N69: =SUBTOTAL(9,G69:M69) -> 0.00 | O69: =IFERROR(N69/$N$18*100,"0.00") -> 0.00
A70: 2 | B70: 1 | C70: 4 | F70: Gratificaciones y Bonificaciones | G70: =G71+G73 -> 0.00 | H70: 0.00 | I70: 0.00 | J70: 0.00 | K70: 0.00 | L70: 0.00 | M70: 0.00 | N70: 0.00 | O70: 0.00
A71: 2 | B71: 1 | C71: 4 | D71: 1 | F71: Bonificaciones | G71: =G72 -> 0.00 | H71: 0.00 | I71: 0.00 | J71: 0.00 | K71: 0.00 | L71: 0.00 | M71: 0.00 | N71: 0.00 | O71: 0.00
A72: 2 | B72: 1 | C72: 4 | D72: 1 | E72: `01 | F72: Bonificaciones | N72: =SUBTOTAL(9,G72:M72) -> 0.00 | O72: =IFERROR(N72/$N$18*100,"0.00") -> 0.00
A73: 2 | B73: 1 | C73: 4 | D73: 2 | F73: Otras Gratificaciones y Bonificaciones | G73: =SUM(G74:G77) -> 0.00 | H73: 0.00 | I73: 0.00 | J73: 0.00 | K73: 0.00 | L73: 0.00 | M73: 0.00 | N73: 0.00 | O73: 0.00
A74: 2 | B74: 1 | C74: 4 | D74: 2 | E74: `01 | F74: Bono escolar | N74: =SUBTOTAL(9,G74:M74) -> 0.00 | O74: =IFERROR(N74/$N$18*100,"0.00") -> 0.00
A75: 2 | B75: 1 | C75: 4 | D75: 2 | E75: `02 | F75: Gratificaciones por pasantías | N75: =SUBTOTAL(9,G75:M75) -> 0.00 | O75: =IFERROR(N75/$N$18*100,"0.00") -> 0.00
A76: 2 | B76: 1 | C76: 4 | D76: 2 | E76: `03 | F76: Gratificaciones por aniversario de institución | N76: =SUBTOTAL(9,G76:M76) -> 0.00 | O76: =IFERROR(N76/$N$18*100,"0.00") -> 0.00
A77: 2 | B77: 1 | C77: 4 | D77: 2 | E77: `04 | F77: Otras Gratificaciones | N77: =SUBTOTAL(9,G77:M77) -> 0.00 | O77: =IFERROR(N77/$N$18*100,"0.00") -> 0.00
A78: 2 | B78: 1 | C78: 5 | F78: Contribuciones a la Seguridad Social y Riesgo Laboral | G78: =G79+G81+G83+G85 -> 0.00 | H78: 0.00 | I78: 0.00 | J78: 0.00 | K78: 0.00 | L78: 0.00 | M78: 4,500,000.00 | N78: 4,500,000.00 | O78: 1.01
A79: 2 | B79: 1 | C79: 5 | D79: 1 | F79: Contribuciones al seguro de salud | G79: =G80 -> 0.00 | H79: 0.00 | I79: 0.00 | J79: 0.00 | K79: 0.00 | L79: 0.00 | M79: 4,500,000.00 | N79: 4,500,000.00 | O79: 1.01
A80: 2 | B80: 1 | C80: 5 | D80: 1 | E80: `01 | F80: Contribuciones al seguro de salud | M80: 4,500,000.00 | N80: =SUBTOTAL(9,G80:M80) -> 4,500,000.00 | O80: =IFERROR(N80/$N$18*100,"0.00") -> 1.01
A81: 2 | B81: 1 | C81: 5 | D81: 2 | F81: Contribuciones al seguro de pensiones | G81: =G82 -> 0.00 | H81: 0.00 | I81: 0.00 | J81: 0.00 | K81: 0.00 | L81: 0.00 | M81: 0.00 | N81: 0.00 | O81: 0.00
A82: 2 | B82: 1 | C82: 5 | D82: 2 | E82: `01 | F82: Contribuciones al seguro de pensiones | N82: =SUBTOTAL(9,G82:M82) -> 0.00 | O82: =IFERROR(N82/$N$18*100,"0.00") -> 0.00
A83: 2 | B83: 1 | C83: 5 | D83: 3 | F83: Contribuciones al seguro de riesgo laboral | G83: =G84 -> 0.00 | H83: 0.00 | I83: 0.00 | J83: 0.00 | K83: 0.00 | L83: 0.00 | M83: 0.00 | N83: 0.00 | O83: 0.00
A84: 2 | B84: 1 | C84: 5 | D84: 3 | E84: `01 | F84: Contribuciones al seguro de riesgo laboral | N84: =SUBTOTAL(9,G84:M84) -> 0.00 | O84: =IFERROR(N84/$N$18*100,"0.00") -> 0.00
A85: 2 | B85: 1 | C85: 5 | D85: 4 | F85: Contribuciones al plan de retiro complementario | G85: =G86 -> 0.00 | H85: 0.00 | I85: 0.00 | J85: 0.00 | K85: 0.00 | L85: 0.00 | M85: 0.00 | N85: 0.00 | O85: 0.00
A86: 2 | B86: 1 | C86: 5 | D86: 4 | E86: `01 | F86: Contribuciones al plan de retiro complementario | N86: =SUBTOTAL(9,G86:M86) -> 0.00 | O86: =IFERROR(N86/$N$18*100,"0.00") -> 0.00
A87: 2 | B87: 2 | F87: Contratacion de servicios | G87: =+G88+G106+G111+G116+G125+G146+G165+G183 -> 205,751.14 | H87: 411,502.28 | I87: 617,253.42 | J87: 308,626.71 | K87: 308,626.71 | L87: 102,875.57 | M87: 11,041,448.28 | N87: 12,996,084.11 | O87: 2.90
A88: 2 | B88: 2 | C88: 1 | F88: Servicios Básicos | G88: =+G89+G91+G93+G95+G97+G99+G102+G104 -> 0.00 | H88: 0.00 | I88: 0.00 | J88: 0.00 | K88: 0.00 | L88: 0.00 | M88: 2,768,323.80 | N88: 2,768,323.80 | O88: 0.62
A89: 2 | B89: 2 | C89: 1 | D89: 1 | F89: Radiocomunicación | G89: =G90 -> 0.00 | H89: 0.00 | I89: 0.00 | J89: 0.00 | K89: 0.00 | L89: 0.00 | M89: 213,160.05 | N89: 213,160.05 | O89: 0.05
A90: 2 | B90: 2 | C90: 1 | D90: 1 | E90: `01 | F90: Radiocomunicación | M90: 213,160.05 | N90: =SUBTOTAL(9,G90:M90) -> 213,160.05 | O90: =IFERROR(N90/$N$18*100,"0.00") -> 0.05
A91: 2 | B91: 2 | C91: 1 | D91: 2 | F91: Servicios telefónico de larga distancia | G91: =G92 -> 0.00 | H91: 0.00 | I91: 0.00 | J91: 0.00 | K91: 0.00 | L91: 0.00 | M91: 240,000.00 | N91: 240,000.00 | O91: 0.05
A92: 2 | B92: 2 | C92: 1 | D92: 2 | E92: `01 | F92: Servicios telefónico de larga distancia | M92: 240,000.00 | N92: =SUBTOTAL(9,G92:M92) -> 240,000.00 | O92: =IFERROR(N92/$N$18*100,"0.00") -> 0.05
A93: 2 | B93: 2 | C93: 1 | D93: 3 | F93: Teléfono local | G93: =G94 -> 0.00 | H93: 0.00 | I93: 0.00 | J93: 0.00 | K93: 0.00 | L93: 0.00 | M93: 1,232,562.58 | N93: 1,232,562.58 | O93: 0.28
A94: 2 | B94: 2 | C94: 1 | D94: 3 | E94: `01 | F94: Teléfono local | M94: 1,232,562.58 | N94: =SUBTOTAL(9,G94:M94) -> 1,232,562.58 | O94: =IFERROR(N94/$N$18*100,"0.00") -> 0.28
A95: 2 | B95: 2 | C95: 1 | D95: 4 | F95: Telefax y correos | G95: =G96 -> 0.00 | H95: 0.00 | I95: 0.00 | J95: 0.00 | K95: 0.00 | L95: 0.00 | M95: 86,601.17 | N95: 86,601.17 | O95: 0.02
A96: 2 | B96: 2 | C96: 1 | D96: 4 | E96: `01 | F96: Telefax y correos | M96: 86,601.17 | N96: =SUBTOTAL(9,G96:M96) -> 86,601.17 | O96: =IFERROR(N96/$N$18*100,"0.00") -> 0.02
A97: 2 | B97: 2 | C97: 1 | D97: 5 | F97: Servicio de internet y televisión por cable | G97: =G98 -> 0.00 | H97: 0.00 | I97: 0.00 | J97: 0.00 | K97: 0.00 | L97: 0.00 | M97: 240,000.00 | N97: 240,000.00 | O97: 0.05
A98: 2 | B98: 2 | C98: 1 | D98: 5 | E98: `01 | F98: Servicio de internet y televisión por cable | M98: 240,000.00 | N98: =SUBTOTAL(9,G98:M98) -> 240,000.00 | O98: =IFERROR(N98/$N$18*100,"0.00") -> 0.05
A99: 2 | B99: 2 | C99: 1 | D99: 6 | F99: Electricidad | G99: =G100+G101 -> 0.00 | H99: 0.00 | I99: 0.00 | J99: 0.00 | K99: 0.00 | L99: 0.00 | M99: 0.00 | N99: 0.00 | O99: 0.00
A100: 2 | B100: 2 | C100: 1 | D100: 6 | E100: `01 | F100: Energía eléctrica | N100: =SUBTOTAL(9,G100:M100) -> 0.00 | O100: =IFERROR(N100/$N$18*100,"0.00") -> 0.00
A101: 2 | B101: 2 | C101: 1 | D101: 6 | E101: `02 | F101: Electricidad no cortable | N101: =SUBTOTAL(9,G101:M101) -> 0.00 | O101: =IFERROR(N101/$N$18*100,"0.00") -> 0.00
A102: 2 | B102: 2 | C102: 1 | D102: 7 | F102: Agua | G102: =G103 -> 0.00 | H102: 0.00 | I102: 0.00 | J102: 0.00 | K102: 0.00 | L102: 0.00 | M102: 696,000.00 | N102: 696,000.00 | O102: 0.16
A103: 2 | B103: 2 | C103: 1 | D103: 7 | E103: `01 | F103: Agua | M103: 696,000.00 | N103: =SUBTOTAL(9,G103:M103) -> 696,000.00 | O103: =IFERROR(N103/$N$18*100,"0.00") -> 0.16
A104: 2 | B104: 2 | C104: 1 | D104: 8 | F104: Recolección de residuos sólidos | G104: =G105 -> 0.00 | H104: 0.00 | I104: 0.00 | J104: 0.00 | K104: 0.00 | L104: 0.00 | M104: 60,000.00 | N104: 60,000.00 | O104: 0.01
A105: 2 | B105: 2 | C105: 1 | D105: 8 | E105: `01 | F105: Recolección de residuos sólidos | M105: 60,000.00 | N105: =SUBTOTAL(9,G105:M105) -> 60,000.00 | O105: =IFERROR(N105/$N$18*100,"0.00") -> 0.01
A106: 2 | B106: 2 | C106: 2 | F106: Publicidad Impresión y Encuadernación | G106: =+G107+G109 -> 205,751.14 | H106: 411,502.28 | I106: 617,253.42 | J106: 308,626.71 | K106: 308,626.71 | L106: 102,875.57 | M106: 252,875.57 | N106: 2,207,511.40 | O106: 0.49
A107: 2 | B107: 2 | C107: 2 | D107: 1 | F107: Publicidad y propaganda | G107: =G108 -> 0.00 | H107: 0.00 | I107: 0.00 | J107: 0.00 | K107: 0.00 | L107: 0.00 | M107: 150,000.00 | N107: 150,000.00 | O107: 0.03
A108: 2 | B108: 2 | C108: 2 | D108: 1 | E108: `01 | F108: Publicidad y propaganda | M108: 150,000.00 | N108: =SUBTOTAL(9,G108:M108) -> 150,000.00 | O108: =IFERROR(N108/$N$18*100,"0.00") -> 0.03
A109: 2 | B109: 2 | C109: 2 | D109: 2 | F109: Impresión y encuadernación | G109: =G110 -> 205,751.14 | H109: 411,502.28 | I109: 617,253.42 | J109: 308,626.71 | K109: 308,626.71 | L109: 102,875.57 | M109: 102,875.57 | N109: 2,057,511.40 | O109: 0.46
A110: 2 | B110: 2 | C110: 2 | D110: 2 | E110: `01 | F110: Impresión y encuadernación | G110: 205,751.14 | H110: 411,502.28 | I110: 617,253.42 | J110: 308,626.71 | K110: 308,626.71 | L110: 102,875.57 | M110: 102,875.57 | N110: =SUBTOTAL(9,G110:M110) -> 2,057,511.40 | O110: =IFERROR(N110/$N$18*100,"0.00") -> 0.46
A111: 2 | B111: 2 | C111: 3 | F111: Viáticos | G111: =+G112+G114 -> 0.00 | H111: 0.00 | I111: 0.00 | J111: 0.00 | K111: 0.00 | L111: 0.00 | M111: 273,800.00 | N111: 273,800.00 | O111: 0.06
A112: 2 | B112: 2 | C112: 3 | D112: 1 | F112: Viáticos dentro del país | G112: =G113 -> 0.00 | H112: 0.00 | I112: 0.00 | J112: 0.00 | K112: 0.00 | L112: 0.00 | M112: 273,800.00 | N112: 273,800.00 | O112: 0.06
A113: 2 | B113: 2 | C113: 3 | D113: 1 | E113: `01 | F113: Viáticos dentro del país | M113: 273,800.00 | N113: =SUBTOTAL(9,G113:M113) -> 273,800.00 | O113: =IFERROR(N113/$N$18*100,"0.00") -> 0.06
A114: 2 | B114: 2 | C114: 3 | D114: 2 | F114: Viáticos fuera del país | G114: =G115 -> 0.00 | H114: 0.00 | I114: 0.00 | J114: 0.00 | K114: 0.00 | L114: 0.00 | M114: 0.00 | N114: 0.00 | O114: 0.00
A115: 2 | B115: 2 | C115: 3 | D115: 2 | E115: `01 | F115: Viáticos fuera del país | N115: =SUBTOTAL(9,G115:M115) -> 0.00 | O115: =IFERROR(N115/$N$18*100,"0.00") -> 0.00
A116: 2 | B116: 2 | C116: 4 | F116: Transporte y Alamcenaje | G116: =+G117+G119+G121+G123 -> 0.00 | H116: 0.00 | I116: 0.00 | J116: 0.00 | K116: 0.00 | L116: 0.00 | M116: 562,200.00 | N116: 562,200.00 | O116: 0.13
A117: 2 | B117: 2 | C117: 4 | D117: 1 | F117: Pasajes | G117: =G118 -> 0.00 | H117: 0.00 | I117: 0.00 | J117: 0.00 | K117: 0.00 | L117: 0.00 | M117: 0.00 | N117: 0.00 | O117: 0.00
A118: 2 | B118: 2 | C118: 4 | D118: 1 | E118: `01 | F118: Pasajes | N118: =SUBTOTAL(9,G118:M118) -> 0.00 | O118: =IFERROR(N118/$N$18*100,"0.00") -> 0.00
A119: 2 | B119: 2 | C119: 4 | D119: 2 | F119: Fletes | G119: =G120 -> 0.00 | H119: 0.00 | I119: 0.00 | J119: 0.00 | K119: 0.00 | L119: 0.00 | M119: 492,000.00 | N119: 492,000.00 | O119: 0.11
A120: 2 | B120: 2 | C120: 4 | D120: 2 | E120: `01 | F120: Fletes | M120: 492,000.00 | N120: =SUBTOTAL(9,G120:M120) -> 492,000.00 | O120: =IFERROR(N120/$N$18*100,"0.00") -> 0.11
A121: 2 | B121: 2 | C121: 4 | D121: 3 | F121: Almacenaje | G121: =G122 -> 0.00 | H121: 0.00 | I121: 0.00 | J121: 0.00 | K121: 0.00 | L121: 0.00 | M121: 70,200.00 | N121: 70,200.00 | O121: 0.02
A122: 2 | B122: 2 | C122: 4 | D122: 3 | E122: `01 | F122: Almacenaje | M122: 70,200.00 | N122: =SUBTOTAL(9,G122:M122) -> 70,200.00 | O122: =IFERROR(N122/$N$18*100,"0.00") -> 0.02
A123: 2 | B123: 2 | C123: 4 | D123: 4 | F123: Peaje | G123: =G124 -> 0.00 | H123: 0.00 | I123: 0.00 | J123: 0.00 | K123: 0.00 | L123: 0.00 | M123: 0.00 | N123: 0.00 | O123: 0.00
A124: 2 | B124: 2 | C124: 4 | D124: 4 | E124: `01 | F124: Peaje | N124: =SUBTOTAL(9,G124:M124) -> 0.00 | O124: =IFERROR(N124/$N$18*100,"0.00") -> 0.00
A125: 2 | B125: 2 | C125: 5 | F125: Alquileres y Rentas | G125: =+G126+G128+G130+G136+G138+G140+G142+G144 -> 0.00 | H125: 0.00 | I125: 0.00 | J125: 0.00 | K125: 0.00 | L125: 0.00 | M125: 2,055,471.12 | N125: 2,055,471.12 | O125: 0.46
A126: 2 | B126: 2 | C126: 5 | D126: 1 | F126: Alquilleres y rentas de edificios y locales | G126: =G127 -> 0.00 | H126: 0.00 | I126: 0.00 | J126: 0.00 | K126: 0.00 | L126: 0.00 | M126: 0.00 | N126: 0.00 | O126: 0.00
A127: 2 | B127: 2 | C127: 5 | D127: 1 | E127: `01 | F127: Alquilleres y rentas de edificios y locales | N127: =SUBTOTAL(9,G127:M127) -> 0.00 | O127: =IFERROR(N127/$N$18*100,"0.00") -> 0.00
A128: 2 | B128: 2 | C128: 5 | D128: 2 | F128: Alquileres de equipos de producción | G128: =G129 -> 0.00 | H128: 0.00 | I128: 0.00 | J128: 0.00 | K128: 0.00 | L128: 0.00 | M128: 0.00 | N128: 0.00 | O128: 0.00
A129: 2 | B129: 2 | C129: 5 | D129: 2 | E129: `01 | F129: Alquileres de equipos de producción | N129: =SUBTOTAL(9,G129:M129) -> 0.00 | O129: =IFERROR(N129/$N$18*100,"0.00") -> 0.00
A130: 2 | B130: 2 | C130: 5 | D130: 3 | F130: Alquileres de maquinarias y equipos | G130: =SUM(G131:G135) -> 0.00 | H130: 0.00 | I130: 0.00 | J130: 0.00 | K130: 0.00 | L130: 0.00 | M130: 396,351.12 | N130: 396,351.12 | O130: 0.09
A131: 2 | B131: 2 | C131: 5 | D131: 3 | E131: `01 | F131: Alquiler de equipo educacional | N131: =SUBTOTAL(9,G131:M131) -> 0.00 | O131: =IFERROR(N131/$N$18*100,"0.00") -> 0.00
A132: 2 | B132: 2 | C132: 5 | D132: 3 | E132: `02 | F132: Alquiler de equipo para computación | M132: 396,351.12 | N132: =SUBTOTAL(9,G132:M132) -> 396,351.12 | O132: =IFERROR(N132/$N$18*100,"0.00") -> 0.09
A133: 2 | B133: 2 | C133: 5 | D133: 3 | E133: `03 | F133: Alquiler de equipo de comunicación | N133: =SUBTOTAL(9,G133:M133) -> 0.00 | O133: =IFERROR(N133/$N$18*100,"0.00") -> 0.00
A134: 2 | B134: 2 | C134: 5 | D134: 3 | E134: `04 | F134: Alquiler de equipo de oficina y muebles | N134: =SUBTOTAL(9,G134:M134) -> 0.00 | O134: =IFERROR(N134/$N$18*100,"0.00") -> 0.00
A135: 2 | B135: 2 | C135: 5 | D135: 3 | E135: `05 | F135: Alquiler de equipos sanitarios y de laboratorios | N135: =SUBTOTAL(9,G135:M135) -> 0.00 | O135: =IFERROR(N135/$N$18*100,"0.00") -> 0.00
A136: 2 | B136: 2 | C136: 5 | D136: 4 | F136: Alquileres de equipos de transporte, tracción y elevación | G136: =G137 -> 0.00 | H136: 0.00 | I136: 0.00 | J136: 0.00 | K136: 0.00 | L136: 0.00 | M136: 99,120.00 | N136: 99,120.00 | O136: 0.02
A137: 2 | B137: 2 | C137: 5 | D137: 4 | E137: `01 | F137: Alquileres de equipos de transporte, tracción y elevación | M137: 99,120.00 | N137: =SUBTOTAL(9,G137:M137) -> 99,120.00 | O137: =IFERROR(N137/$N$18*100,"0.00") -> 0.02
A138: 2 | B138: 2 | C138: 5 | D138: 5 | F138: Alquiler de tierra | G138: =+G139 -> 0.00 | H138: 0.00 | I138: 0.00 | J138: 0.00 | K138: 0.00 | L138: 0.00 | M138: 0.00 | N138: 0.00 | O138: 0.00
A139: 2 | B139: 2 | C139: 5 | D139: 5 | E139: `01 | F139: Alquiler de tierra | N139: =SUBTOTAL(9,G139:M139) -> 0.00 | O139: =IFERROR(N139/$N$18*100,"0.00") -> 0.00
A140: 2 | B140: 2 | C140: 5 | D140: 6 | F140: Alquileres de Terrenos | G140: =G141 -> 0.00 | H140: 0.00 | I140: 0.00 | J140: 0.00 | K140: 0.00 | L140: 0.00 | M140: 0.00 | N140: 0.00 | O140: 0.00
A141: 2 | B141: 2 | C141: 5 | D141: 6 | E141: `01 | F141: Alquileres de Terrenos | N141: =SUBTOTAL(9,G141:M141) -> 0.00 | O141: =IFERROR(N141/$N$18*100,"0.00") -> 0.00
A142: 2 | B142: 2 | C142: 5 | D142: 7 | F142: Alquileres de equipos de construccion y movimiento de tierra | G142: =+G143 -> 0.00 | H142: 0.00 | I142: 0.00 | J142: 0.00 | K142: 0.00 | L142: 0.00 | M142: 0.00 | N142: 0.00 | O142: 0.00
A143: 2 | B143: 2 | C143: 5 | D143: 7 | E143: `01 | F143: Alquileres de equipos de construccion y movimiento de tierra | N143: =SUBTOTAL(9,G143:M143) -> 0.00 | O143: =IFERROR(N143/$N$18*100,"0.00") -> 0.00
A144: 2 | B144: 2 | C144: 5 | D144: 8 | F144: Otros alquileres | G144: =G145 -> 0.00 | H144: 0.00 | I144: 0.00 | J144: 0.00 | K144: 0.00 | L144: 0.00 | M144: 1,560,000.00 | N144: 1,560,000.00 | O144: 0.35
A145: 2 | B145: 2 | C145: 5 | D145: 8 | E145: `01 | F145: Otros alquileres | M145: 1,560,000.00 | N145: =SUBTOTAL(9,G145:M145) -> 1,560,000.00 | O145: =IFERROR(N145/$N$18*100,"0.00") -> 0.35
A146: 2 | B146: 2 | C146: 6 | F146: Seguros | G146: =+G147+G149+G151+G153+G155+G157+G159+G161+G163 -> 0.00 | H146: 0.00 | I146: 0.00 | J146: 0.00 | K146: 0.00 | L146: 0.00 | M146: 0.00 | N146: 0.00 | O146: 0.00
A147: 2 | B147: 2 | C147: 6 | D147: 1 | F147: Seguro de bienes inmuebles e infraestructura | G147: =G148 -> 0.00 | H147: 0.00 | I147: 0.00 | J147: 0.00 | K147: 0.00 | L147: 0.00 | M147: 0.00 | N147: 0.00 | O147: 0.00
A148: 2 | B148: 2 | C148: 6 | D148: 1 | E148: `01 | F148: Seguro de bienes inmuebles e infraestructura | N148: =SUBTOTAL(9,G148:M148) -> 0.00 | O148: =IFERROR(N148/$N$18*100,"0.00") -> 0.00
A149: 2 | B149: 2 | C149: 6 | D149: 2 | F149: Seguro de bienes muebles | G149: =G150 -> 0.00 | H149: 0.00 | I149: 0.00 | J149: 0.00 | K149: 0.00 | L149: 0.00 | M149: 0.00 | N149: 0.00 | O149: 0.00
A150: 2 | B150: 2 | C150: 6 | D150: 2 | E150: `01 | F150: Seguro de bienes muebles | N150: =SUBTOTAL(9,G150:M150) -> 0.00 | O150: =IFERROR(N150/$N$18*100,"0.00") -> 0.00
A151: 2 | B151: 2 | C151: 6 | D151: 3 | F151: Seguros de personas | G151: =G152 -> 0.00 | H151: 0.00 | I151: 0.00 | J151: 0.00 | K151: 0.00 | L151: 0.00 | M151: 0.00 | N151: 0.00 | O151: 0.00
A152: 2 | B152: 2 | C152: 6 | D152: 3 | E152: `01 | F152: Seguros de personas | N152: =SUBTOTAL(9,G152:M152) -> 0.00 | O152: =IFERROR(N152/$N$18*100,"0.00") -> 0.00
A153: 2 | B153: 2 | C153: 6 | D153: 4 | F153: Seguros de la producción agrícola | G153: =G154 -> 0.00 | H153: 0.00 | I153: 0.00 | J153: 0.00 | K153: 0.00 | L153: 0.00 | M153: 0.00 | N153: 0.00 | O153: 0.00
A154: 2 | B154: 2 | C154: 6 | D154: 4 | E154: `01 | F154: Seguros de la producción agrícola | N154: =SUBTOTAL(9,G154:M154) -> 0.00 | O154: =IFERROR(N154/$N$18*100,"0.00") -> 0.00
A155: 2 | B155: 2 | C155: 6 | D155: 5 | F155: Seguro sobre infraestructura | G155: =+G156 -> 0.00 | H155: 0.00 | I155: 0.00 | J155: 0.00 | K155: 0.00 | L155: 0.00 | M155: 0.00 | N155: 0.00 | O155: 0.00
A156: 2 | B156: 2 | C156: 6 | D156: 5 | E156: `01 | F156: Seguro sobre infraestructura | N156: =SUBTOTAL(9,G156:M156) -> 0.00 | O156: =IFERROR(N156/$N$18*100,"0.00") -> 0.00
A157: 2 | B157: 2 | C157: 6 | D157: 6 | F157: Seguros sobre bienes de dominio publico | G157: =+G158 -> 0.00 | H157: 0.00 | I157: 0.00 | J157: 0.00 | K157: 0.00 | L157: 0.00 | M157: 0.00 | N157: 0.00 | O157: 0.00
A158: 2 | B158: 2 | C158: 6 | D158: 6 | E158: `01 | F158: Seguros sobre bienes de dominio publico | N158: =SUBTOTAL(9,G158:M158) -> 0.00 | O158: =IFERROR(N158/$N$18*100,"0.00") -> 0.00
A159: 2 | B159: 2 | C159: 6 | D159: 7 | F159: Seguros sobre bienes historicos y culturales | G159: =+G160 -> 0.00 | H159: 0.00 | I159: 0.00 | J159: 0.00 | K159: 0.00 | L159: 0.00 | M159: 0.00 | N159: 0.00 | O159: 0.00
A160: 2 | B160: 2 | C160: 6 | D160: 7 | E160: `01 | F160: Seguros sobre bienes historicos y culturales | N160: =SUBTOTAL(9,G160:M160) -> 0.00 | O160: =IFERROR(N160/$N$18*100,"0.00") -> 0.00
A161: 2 | B161: 2 | C161: 6 | D161: 8 | F161: Seguros sobre inventarios de bienes de consumo | G161: =+G162 -> 0.00 | H161: 0.00 | I161: 0.00 | J161: 0.00 | K161: 0.00 | L161: 0.00 | M161: 0.00 | N161: 0.00 | O161: 0.00
A162: 2 | B162: 2 | C162: 6 | D162: 8 | E162: `01 | F162: Seguros sobre inventarios de bienes de consumo | N162: =SUBTOTAL(9,G162:M162) -> 0.00 | O162: =IFERROR(N162/$N$18*100,"0.00") -> 0.00
A163: 2 | B163: 2 | C163: 6 | D163: 9 | F163: Otros seguros | G163: =+G164 -> 0.00 | H163: 0.00 | I163: 0.00 | J163: 0.00 | K163: 0.00 | L163: 0.00 | M163: 0.00 | N163: 0.00 | O163: 0.00
A164: 2 | B164: 2 | C164: 6 | D164: 9 | E164: `01 | F164: Otros seguros | N164: =SUBTOTAL(9,G164:M164) -> 0.00 | O164: =IFERROR(N164/$N$18*100,"0.00") -> 0.00
A165: 2 | B165: 2 | C165: 7 | F165: Servicios de Conservación, Reparaciones Menores e Instalaciones Temporales | G165: =+G166+G174+G181 -> 0.00 | H165: 0.00 | I165: 0.00 | J165: 0.00 | K165: 0.00 | L165: 0.00 | M165: 4,578,777.79 | N165: 4,578,777.79 | O165: 1.02
A166: 2 | B166: 2 | C166: 7 | D166: 1 | F166: Contrataciones de obras menores | G166: =SUM(G167:G173) -> 0.00 | H166: 0.00 | I166: 0.00 | J166: 0.00 | K166: 0.00 | L166: 0.00 | M166: 2,350,000.00 | N166: 2,350,000.00 | O166: 0.52
A167: 2 | B167: 2 | C167: 7 | D167: 1 | E167: `01 | F167: Obras menores en edificaciones | M167: 350,000.00 | N167: =SUBTOTAL(9,G167:M167) -> 350,000.00 | O167: =IFERROR(N167/$N$18*100,"0.00") -> 0.08
A168: 2 | B168: 2 | C168: 7 | D168: 1 | E168: `02 | F168: Servicios especiales de mantenimiento y reparación | M168: 1,500,000.00 | N168: 1,500,000.00 | O168: 0.34
A169: 2 | B169: 2 | C169: 7 | D169: 1 | E169: `03 | F169: Limpieza, desmalezamiento de tierras y terrenos | N169: 0.00 | O169: 0.00
A170: 2 | B170: 2 | C170: 7 | D170: 1 | E170: `04 | F170: Mantenimiento y reparación de obras civiles en instalaciones varias | N170: 0.00 | O170: 0.00
A171: 2 | B171: 2 | C171: 7 | D171: 1 | E171: `05 | F171: Obras en bienes de dominio público | N171: 0.00 | O171: 0.00
A172: 2 | B172: 2 | C172: 7 | D172: 1 | E172: `06 | F172: Instalaciones eléctricas | N172: 0.00 | O172: 0.00
A173: 2 | B173: 2 | C173: 7 | D173: 1 | E173: `07 | F173: Servicios de pintura y derivados con fin de higiene y embellecimiento | M173: 500,000.00 | N173: 500,000.00 | O173: 0.11
A174: 2 | B174: 2 | C174: 7 | D174: 2 | F174: Mantenimientos y reparacion de maquinarias y equipos | G174: =SUM(G175:G180) -> 0.00 | H174: 0.00 | I174: 0.00 | J174: 0.00 | K174: 0.00 | L174: 0.00 | M174: 2,228,777.79 | N174: 2,228,777.79 | O174: 0.50
A175: 2 | B175: 2 | C175: 7 | D175: 2 | E175: `01 | F175: Mantenimiento y reparación de equipo de oficina y muebles | N175: =SUBTOTAL(9,G175:M175) -> 0.00 | O175: =IFERROR(N175/$N$18*100,"0.00") -> 0.00
A176: 2 | B176: 2 | C176: 7 | D176: 2 | E176: `02 | F176: Mantenimiento y reparación de equipo para computación | M176: 30,000.00 | N176: 30,000.00 | O176: 0.01
A177: 2 | B177: 2 | C177: 7 | D177: 2 | E177: `03 | F177: Mantenimiento y reparación de equipo de educacional | N177: 0.00 | O177: 0.00
A178: 2 | B178: 2 | C178: 7 | D178: 2 | E178: `04 | F178: Mantenimiento y reparación de equipos sanitarios y de laboratorio | M178: 1,726,537.89 | N178: 1,726,537.89 | O178: 0.39
A179: 2 | B179: 2 | C179: 7 | D179: 2 | E179: `05 | F179: Mantenimiento y reparación de equipos de comunicación | N179: 0.00 | O179: 0.00
A180: 2 | B180: 2 | C180: 7 | D180: 2 | E180: `06 | F180: Mantenimiento y reparación de equipos de transporte, tracción y elevación | M180: 472,239.90 | N180: 472,239.90 | O180: 0.11
A181: 2 | B181: 2 | C181: 7 | D181: 3 | F181: Instalaciones temporales | G181: =G182 -> 0.00 | H181: 0.00 | I181: 0.00 | J181: 0.00 | K181: 0.00 | L181: 0.00 | M181: 0.00 | N181: 0.00 | O181: 0.00
A182: 2 | B182: 2 | C182: 7 | D182: 3 | E182: `01 | F182: Instalaciones temporales | N182: =SUBTOTAL(9,G182:M182) -> 0.00 | O182: =IFERROR(N182/$N$18*100,"0.00") -> 0.00
A183: 2 | B183: 2 | C183: 8 | F183: Otros Servicios No Incluidos en conceptos anteriores | G183: =+G184+G186+G188+G190+G192+G196+G201+G208+G212 -> 0.00 | H183: 0.00 | I183: 0.00 | J183: 0.00 | K183: 0.00 | L183: 0.00 | M183: 550,000.00 | N183: 550,000.00 | O183: 0.12
A184: 2 | B184: 2 | C184: 8 | D184: 1 | F184: Gastos judiciales | G184: =G185 -> 0.00 | H184: 0.00 | I184: 0.00 | J184: 0.00 | K184: 0.00 | L184: 0.00 | M184: 0.00 | N184: 0.00 | O184: 0.00
A185: 2 | B185: 2 | C185: 8 | D185: 1 | E185: `01 | F185: Gastos judiciales | N185: =SUBTOTAL(9,G185:M185) -> 0.00 | O185: =IFERROR(N185/$N$18*100,"0.00") -> 0.00
A186: 2 | B186: 2 | C186: 8 | D186: 2 | F186: Comisiones y gastos bancarios | G186: =G187 -> 0.00 | H186: 0.00 | I186: 0.00 | J186: 0.00 | K186: 0.00 | L186: 0.00 | M186: 0.00 | N186: 0.00 | O186: 0.00
A187: 2 | B187: 2 | C187: 8 | D187: 2 | E187: `01 | F187: Comisiones y gastos bancarios | N187: =SUBTOTAL(9,G187:M187) -> 0.00 | O187: =IFERROR(N187/$N$18*100,"0.00") -> 0.00
A188: 2 | B188: 2 | C188: 8 | D188: 3 | F188: Servicios sanitarios médicos y veterinarios | G188: =G189 -> 0.00 | H188: 0.00 | I188: 0.00 | J188: 0.00 | K188: 0.00 | L188: 0.00 | M188: 0.00 | N188: 0.00 | O188: 0.00
A189: 2 | B189: 2 | C189: 8 | D189: 3 | E189: `01 | F189: Servicios sanitarios médicos y veterinarios | N189: =SUBTOTAL(9,G189:M189) -> 0.00 | O189: =IFERROR(N189/$N$18*100,"0.00") -> 0.00
A190: 2 | B190: 2 | C190: 8 | D190: 4 | F190: Servicios funerarios y gastos conexos | G190: =G191 -> 0.00 | H190: 0.00 | I190: 0.00 | J190: 0.00 | K190: 0.00 | L190: 0.00 | M190: 60,000.00 | N190: 60,000.00 | O190: 0.01
A191: 2 | B191: 2 | C191: 8 | D191: 4 | E191: `01 | F191: Servicios funerarios y gastos conexos | M191: 60,000.00 | N191: =SUBTOTAL(9,G191:M191) -> 60,000.00 | O191: =IFERROR(N191/$N$18*100,"0.00") -> 0.01
A192: 2 | B192: 2 | C192: 8 | D192: 5 | F192: Fumigación, lavandería, limpieza e higiene | G192: =SUM(G193:G195) -> 0.00 | H192: 0.00 | I192: 0.00 | J192: 0.00 | K192: 0.00 | L192: 0.00 | M192: 0.00 | N192: 0.00 | O192: 0.00
A193: 2 | B193: 2 | C193: 8 | D193: 5 | E193: `01 | F193: Fumigación | N193: =SUBTOTAL(9,G193:M193) -> 0.00 | O193: =IFERROR(N193/$N$18*100,"0.00") -> 0.00
A194: 2 | B194: 2 | C194: 8 | D194: 5 | E194: `02 | F194: Lavandería | N194: =SUBTOTAL(9,G194:M194) -> 0.00 | O194: =IFERROR(N194/$N$18*100,"0.00") -> 0.00
A195: 2 | B195: 2 | C195: 8 | D195: 5 | E195: `03 | F195: Limpieza e higiene | N195: =SUBTOTAL(9,G195:M195) -> 0.00 | O195: =IFERROR(N195/$N$18*100,"0.00") -> 0.00
A196: 2 | B196: 2 | C196: 8 | D196: 6 | F196: Organización de eventos y festividades | G196: =SUM(G197:G200) -> 0.00 | H196: 0.00 | I196: 0.00 | J196: 0.00 | K196: 0.00 | L196: 0.00 | M196: 150,000.00 | N196: 150,000.00 | O196: 0.03
A197: 2 | B197: 2 | C197: 8 | D197: 6 | E197: `01 | F197: Eventos generals | M197: 150,000.00 | N197: =SUBTOTAL(9,G197:M197) -> 150,000.00 | O197: =IFERROR(N197/$N$18*100,"0.00") -> 0.03
A198: 2 | B198: 2 | C198: 8 | D198: 6 | E198: `02 | F198: Festividades | N198: =SUBTOTAL(9,G198:M198) -> 0.00 | O198: =IFERROR(N198/$N$18*100,"0.00") -> 0.00
A199: 2 | B199: 2 | C199: 8 | D199: 6 | E199: `03 | F199: Actuaciones deportivas | N199: =SUBTOTAL(9,G199:M199) -> 0.00 | O199: =IFERROR(N199/$N$18*100,"0.00") -> 0.00
A200: 2 | B200: 2 | C200: 8 | D200: 6 | E200: `04 | F200: Actuaciones artísticas | N200: =SUBTOTAL(9,G200:M200) -> 0.00 | O200: =IFERROR(N200/$N$18*100,"0.00") -> 0.00
... 314 more rows

Sheet Hoja3
A1: =+[1]PPNE1!B1 -> 0
A2: Servicio Nacional de Salud
A3: Dirección de Planificación y Desarrollo
A4: Consolidado Presupuesto Estimado de Ingresos y Gastos Nivel Especializado por Fuente de Financiamiento
A5: =+[1]PPNE1!C5 -> 2022
A6: Servicio Regional de Salud: | F6: =+[1]PPNE1!B6 -> Norcentral
A7: Establecimiento: | F7: =+[1]PPNE1!B7 -> HOSPITAL PROVINCIAL RICARDO LIMARDO
A8: Estimación de Ingresos
A9: Anticipos Financieros | G9: =+[1]PPNE3!F16 -> 29,600,000.00
A10: Venta de Servicios y Otros Ingresos | G10: =+[1]PPNE3!F22 -> 162,815,630.04
A11: Aportes SNS Nómina | G11: =+[1]PPNE3!F15 -> 251,280,027.48
A12: Otros Aportes | G12: =[1]PPNE3!F11+[1]PPNE3!F12+[1]PPNE3!F17+[1]PPNE3!F20+[1]PPNE3!F21 -> 3,975,000.00
A13: Transferencias Corrientes | G13: =+[1]PPNE3!F18 -> 0.00
A14: Total Ingresos RD$ | G14: =SUM(G9:G13) -> 447,670,657.52
A15: Estimación de Gastos
A16: Tipo | B16: Objeto | C16: Cuenta | D16: Sub-Cuenta | E16: Auxiliar | F16: Descripción Gasto por Cuenta | G16: Anticipos Financieros / Transferencias | H16: Venta de Servicios | I16: Nómina | J16: Total RD$ | K16: %
A18: 2 | F18: Egresos | G18: 29,100,000.00 | H18: 167,290,630.04 | I18: 251,280,027.48 | J18: 447,670,657.52 | K18: 100.00
A19: 2 | B19: 1 | F19: Servicios Personales | G19: 0.00 | H19: 56,190,574.22 | I19: 251,280,027.48 | J19: 307,470,601.70 | K19: 68.68
A20: 2 | B20: 1 | C20: 1 | F20: Remuneraciones | G20: 0.00 | H20: 43,825,654.34 | I20: 251,280,027.48 | J20: 295,105,681.82 | K20: 65.92
A21: 2 | B21: 1 | C21: 1 | D21: 1 | F21: Remuneraciones al personal fijo | G21: 0.00 | H21: 15,477,705.08 | I21: 251,280,027.48 | J21: 266,757,732.56 | K21: 59.59
A22: 2 | B22: 1 | C22: 1 | D22: 1 | E22: `01 | F22: Sueldos fijos | I22: 251,280,027.48 | J22: =SUBTOTAL(9,G22:I22) -> 251,280,027.48 | K22: =IFERROR(J22/$J$18*100,"0.00") -> 56.13
A23: 2 | B23: 1 | C23: 1 | D23: 1 | E23: `02 | F23: Sueldos a medicos | J23: 0.00 | K23: 0.00
A24: 2 | B24: 1 | C24: 1 | D24: 1 | E24: `03 | F24: Ascenso a militires | J24: 0.00 | K24: 0.00
A25: 2 | B25: 1 | C25: 1 | D25: 1 | E25: `04 | F25: Nuevas plazas maestros | J25: 0.00 | K25: 0.00
A26: 2 | B26: 1 | C26: 1 | D26: 1 | E26: `05 | F26: Incentivos y escalafón | H26: 15,477,705.08 | J26: 15,477,705.08 | K26: 3.46
A27: 2 | B27: 1 | C27: 1 | D27: 1 | E27: `06 | F27: Nuevas plazas a medicos | J27: 0.00 | K27: 0.00
A28: 2 | B28: 1 | C28: 1 | D28: 2 | F28: Remuneraciones al personal con carácter transitorio | G28: 0.00 | H28: 25,364,095.20 | I28: 0.00 | J28: 25,364,095.20 | K28: 5.67
A29: 2 | B29: 1 | C29: 1 | D29: 2 | E29: `01 | F29: Sueldos al personal contratado y/o igualado | H29: 25,364,095.20 | J29: =SUBTOTAL(9,G29:I29) -> 25,364,095.20 | K29: =IFERROR(J29/$J$18*100,"0.00") -> 5.67
A30: 2 | B30: 1 | C30: 1 | D30: 2 | E30: `02 | F30: Sueldos de personal nominal | J30: 0.00 | K30: 0.00
A31: 2 | B31: 1 | C31: 1 | D31: 2 | E31: `03 | F31: Suplencias | J31: 0.00 | K31: 0.00
A32: 2 | B32: 1 | C32: 1 | D32: 2 | E32: `04 | F32: Sueldos al personal por servicios especiales | J32: 0.00 | K32: 0.00
A33: 2 | B33: 1 | C33: 1 | D33: 2 | E33: `05 | F33: Sueldo al personal nominal en período probatorio | J33: 0.00 | K33: 0.00
A34: 2 | B34: 1 | C34: 1 | D34: 2 | E34: `06 | F34: Jornales | J34: 0.00 | K34: 0.00
A35: 2 | B35: 1 | C35: 1 | D35: 2 | E35: `07 | F35: Sobrejornales | J35: 0.00 | K35: 0.00
A36: 2 | B36: 1 | C36: 1 | D36: 3 | F36: Sueldos al personal fijo en trámite de pensiones | G36: 0.00 | H36: 0.00 | I36: 0.00 | J36: 0.00 | K36: 0.00
A37: 2 | B37: 1 | C37: 1 | D37: 3 | E37: `01 | F37: Sueldos al personal fijo en trámite de pensiones | J37: =SUBTOTAL(9,G37:I37) -> 0.00 | K37: =IFERROR(J37/$J$18*100,"0.00") -> 0.00
A38: 2 | B38: 1 | C38: 1 | D38: 4 | F38: Sueldo anual No. 13 | G38: 0.00 | H38: 2,983,854.06 | I38: 0.00 | J38: 2,983,854.06 | K38: 0.67
A39: 2 | B39: 1 | C39: 1 | D39: 4 | E39: `01 | F39: Sueldo anual No. 13 | H39: 2,983,854.06 | J39: =SUBTOTAL(9,G39:I39) -> 2,983,854.06 | K39: =IFERROR(J39/$J$18*100,"0.00") -> 0.67
A40: 2 | B40: 1 | C40: 1 | D40: 5 | F40: Prestacianes economicas | G40: 0.00 | H40: 0.00 | I40: 0.00 | J40: 0.00 | K40: 0.00
A41: 2 | B41: 1 | C41: 1 | D41: 5 | E41: `01 | F41: Prestacianes economicas | J41: =SUBTOTAL(9,G41:I41) -> 0.00 | K41: =IFERROR(J41/$J$18*100,"0.00") -> 0.00
A42: 2 | B42: 1 | C42: 1 | D42: 5 | E42: `02 | F42: Pago de porcentaje por desvinculación de cargo | J42: =SUBTOTAL(9,G42:I42) -> 0.00 | K42: =IFERROR(J42/$J$18*100,"0.00") -> 0.00
A43: 2 | B43: 1 | C43: 1 | D43: 5 | E43: `03 | F43: Prestacion laboral por desvinculación | J43: =SUBTOTAL(9,G43:I43) -> 0.00 | K43: =IFERROR(J43/$J$18*100,"0.00") -> 0.00
A44: 2 | B44: 1 | C44: 1 | D44: 5 | E44: `04 | F44: Proporción de vacaciones no disfrutadas | J44: =SUBTOTAL(9,G44:I44) -> 0.00 | K44: =IFERROR(J44/$J$18*100,"0.00") -> 0.00
A45: 2 | B45: 1 | C45: 1 | D45: 6 | F45: Vacaciones | G45: 0.00 | H45: 0.00 | I45: 0.00 | J45: 0.00 | K45: 0.00
A46: 2 | B46: 1 | C46: 1 | D46: 6 | E46: `01 | F46: Vacaciones | J46: =SUBTOTAL(9,G46:I46) -> 0.00 | K46: =IFERROR(J46/$J$18*100,"0.00") -> 0.00
A47: 2 | B47: 1 | C47: 2 | F47: Sobresueldos | G47: 0.00 | H47: 7,864,919.88 | I47: 0.00 | J47: 7,864,919.88 | K47: 1.76
A48: 2 | B48: 1 | C48: 2 | D48: 1 | F48: Primas por antigüedad | G48: 0.00 | H48: 0.00 | I48: 0.00 | J48: 0.00 | K48: 0.00
A49: 2 | B49: 1 | C49: 2 | D49: 1 | E49: `01 | F49: Primas por antigüedad | J49: =SUBTOTAL(9,G49:I49) -> 0.00 | K49: =IFERROR(J49/$J$18*100,"0.00") -> 0.00
A50: 2 | B50: 1 | C50: 2 | D50: 2 | F50: Compensación | G50: 0.00 | H50: 7,864,919.88 | I50: 0.00 | J50: 7,864,919.88 | K50: 1.76
A51: 2 | B51: 1 | C51: 2 | D51: 2 | E51: `01 | F51: Compensación por gastos de alimentación | J51: =SUBTOTAL(9,G51:I51) -> 0.00 | K51: =IFERROR(J51/$J$18*100,"0.00") -> 0.00
A52: 2 | B52: 1 | C52: 2 | D52: 2 | E52: `02 | F52: Compensación por horas extraordinarias | J52: 0.00 | K52: 0.00
A53: 2 | B53: 1 | C53: 2 | D53: 2 | E53: `03 | F53: Pago de horas extraordinarias, Horas extraordinarias fin de año (Reglamento 523-09) | J53: 0.00 | K53: 0.00
A54: 2 | B54: 1 | C54: 2 | D54: 2 | E54: `04 | F54: Prima de transporte | J54: 0.00 | K54: 0.00
A55: 2 | B55: 1 | C55: 2 | D55: 2 | E55: `05 | F55: Compensación servicios de Seguridad | J55: 0.00 | K55: 0.00
A56: 2 | B56: 1 | C56: 2 | D56: 2 | E56: `06 | F56: Compensación por resultados | J56: 0.00 | K56: 0.00
A57: 2 | B57: 1 | C57: 2 | D57: 2 | E57: `07 | F57: Compensación por distancia | J57: 0.00 | K57: 0.00
A58: 2 | B58: 1 | C58: 2 | D58: 2 | E58: `08 | F58: Compensaciones especiales | H58: 7,864,919.88 | J58: 7,864,919.88 | K58: 1.76
A59: 2 | B59: 1 | C59: 2 | D59: 2 | E59: `09 | F59: Bono por desempeño | J59: 0.00 | K59: 0.00
A60: 2 | B60: 1 | C60: 2 | D60: 2 | E60: `10 | F60: Beneficio , Acuerdo de desempeños institucionales (Reglamento 423-12) | J60: 0.00 | K60: 0.00
A61: 2 | B61: 1 | C61: 2 | D61: 3 | F61: Especialismos | G61: 0.00 | H61: 0.00 | I61: 0.00 | J61: 0.00 | K61: 0.00
A62: 2 | B62: 1 | C62: 2 | D62: 3 | E62: `01 | F62: Especialismos | J62: =SUBTOTAL(9,G62:I62) -> 0.00 | K62: =IFERROR(J62/$J$18*100,"0.00") -> 0.00
A63: 2 | B63: 1 | C63: 3 | F63: Dietas y Gastos de Representación | G63: 0.00 | H63: 0.00 | I63: 0.00 | J63: 0.00 | K63: 0.00
A64: 2 | B64: 1 | C64: 3 | D64: 1 | F64: Dietas | G64: 0.00 | H64: 0.00 | I64: 0.00 | J64: 0.00 | K64: 0.00
A65: 2 | B65: 1 | C65: 3 | D65: 1 | E65: `01 | F65: Dietas en el país | J65: =SUBTOTAL(9,G65:I65) -> 0.00 | K65: =IFERROR(J65/$J$18*100,"0.00") -> 0.00
A66: 2 | B66: 1 | C66: 3 | D66: 1 | E66: `02 | F66: Dietas en el exterior | J66: =SUBTOTAL(9,G66:I66) -> 0.00 | K66: =IFERROR(J66/$J$18*100,"0.00") -> 0.00
A67: 2 | B67: 1 | C67: 3 | D67: 2 | F67: Gastos de representación | G67: 0.00 | H67: 0.00 | I67: 0.00 | J67: 0.00 | K67: 0.00
A68: 2 | B68: 1 | C68: 3 | D68: 2 | E68: `01 | F68: Gastos de representación en el país | J68: =SUBTOTAL(9,G68:I68) -> 0.00 | K68: =IFERROR(J68/$J$18*100,"0.00") -> 0.00
A69: 2 | B69: 1 | C69: 3 | D69: 2 | E69: `02 | F69: Gastos de representación en el exterior | J69: =SUBTOTAL(9,G69:I69) -> 0.00 | K69: =IFERROR(J69/$J$18*100,"0.00") -> 0.00
A70: 2 | B70: 1 | C70: 4 | F70: Gratificaciones y Bonificaciones | G70: 0.00 | H70: 0.00 | I70: 0.00 | J70: 0.00 | K70: 0.00
A71: 2 | B71: 1 | C71: 4 | D71: 1 | F71: Bonificaciones | G71: 0.00 | H71: 0.00 | I71: 0.00 | J71: 0.00 | K71: 0.00
A72: 2 | B72: 1 | C72: 4 | D72: 1 | E72: `01 | F72: Bonificaciones | J72: =SUBTOTAL(9,G72:I72) -> 0.00 | K72: =IFERROR(J72/$J$18*100,"0.00") -> 0.00
A73: 2 | B73: 1 | C73: 4 | D73: 2 | F73: Otras Gratificaciones y Bonificaciones | G73: 0.00 | H73: 0.00 | I73: 0.00 | J73: 0.00 | K73: 0.00
A74: 2 | B74: 1 | C74: 4 | D74: 2 | E74: `01 | F74: Bono escolar | J74: =SUBTOTAL(9,G74:I74) -> 0.00 | K74: =IFERROR(J74/$J$18*100,"0.00") -> 0.00
A75: 2 | B75: 1 | C75: 4 | D75: 2 | E75: `02 | F75: Gratificaciones por pasantías | J75: =SUBTOTAL(9,G75:I75) -> 0.00 | K75: =IFERROR(J75/$J$18*100,"0.00") -> 0.00
A76: 2 | B76: 1 | C76: 4 | D76: 2 | E76: `03 | F76: Gratificaciones por aniversario de institución | J76: =SUBTOTAL(9,G76:I76) -> 0.00 | K76: =IFERROR(J76/$J$18*100,"0.00") -> 0.00
A77: 2 | B77: 1 | C77: 4 | D77: 2 | E77: `04 | F77: Otras Gratificaciones | J77: =SUBTOTAL(9,G77:I77) -> 0.00 | K77: =IFERROR(J77/$J$18*100,"0.00") -> 0.00
A78: 2 | B78: 1 | C78: 5 | F78: Contribuciones a la Seguridad Social y Riesgo Laboral | G78: 0.00 | H78: 4,500,000.00 | I78: 0.00 | J78: 4,500,000.00 | K78: 1.01
A79: 2 | B79: 1 | C79: 5 | D79: 1 | F79: Contribuciones al seguro de salud | G79: 0.00 | H79: 4,500,000.00 | I79: 0.00 | J79: 4,500,000.00 | K79: 1.01
A80: 2 | B80: 1 | C80: 5 | D80: 1 | E80: `01 | F80: Contribuciones al seguro de salud | H80: 4,500,000.00 | J80: =SUBTOTAL(9,G80:I80) -> 4,500,000.00 | K80: =IFERROR(J80/$J$18*100,"0.00") -> 1.01
A81: 2 | B81: 1 | C81: 5 | D81: 2 | F81: Contribuciones al seguro de pensiones | G81: 0.00 | H81: 0.00 | I81: 0.00 | J81: 0.00 | K81: 0.00
A82: 2 | B82: 1 | C82: 5 | D82: 2 | E82: `01 | F82: Contribuciones al seguro de pensiones | J82: =SUBTOTAL(9,G82:I82) -> 0.00 | K82: =IFERROR(J82/$J$18*100,"0.00") -> 0.00
A83: 2 | B83: 1 | C83: 5 | D83: 3 | F83: Contribuciones al seguro de riesgo laboral | G83: 0.00 | H83: 0.00 | I83: 0.00 | J83: 0.00 | K83: 0.00
A84: 2 | B84: 1 | C84: 5 | D84: 3 | E84: `01 | F84: Contribuciones al seguro de riesgo laboral | J84: =SUBTOTAL(9,G84:I84) -> 0.00 | K84: =IFERROR(J84/$J$18*100,"0.00") -> 0.00
A85: 2 | B85: 1 | C85: 5 | D85: 4 | F85: Contribuciones al plan de retiro complementario | G85: 0.00 | H85: 0.00 | I85: 0.00 | J85: 0.00 | K85: 0.00
A86: 2 | B86: 1 | C86: 5 | D86: 4 | E86: `01 | F86: Contribuciones al plan de retiro complementario | J86: =SUBTOTAL(9,G86:I86) -> 0.00 | K86: =IFERROR(J86/$J$18*100,"0.00") -> 0.00
A87: 2 | B87: 2 | F87: Contratacion de servicios | G87: 1,882,122.32 | H87: 11,113,961.79 | I87: 0.00 | J87: 12,996,084.11 | K87: 2.90
A88: 2 | B88: 2 | C88: 1 | F88: Servicios Básicos | G88: 655,507.92 | H88: 2,112,815.88 | I88: 0.00 | J88: 2,768,323.80 | K88: 0.62
A89: 2 | B89: 2 | C89: 1 | D89: 1 | F89: Radiocomunicación | G89: 0.00 | H89: 213,160.05 | I89: 0.00 | J89: 213,160.05 | K89: 0.05
A90: 2 | B90: 2 | C90: 1 | D90: 1 | E90: `01 | F90: Radiocomunicación | H90: 213,160.05 | J90: =SUBTOTAL(9,G90:I90) -> 213,160.05 | K90: =IFERROR(J90/$J$18*100,"0.00") -> 0.05
A91: 2 | B91: 2 | C91: 1 | D91: 2 | F91: Servicios telefónico de larga distancia | G91: 0.00 | H91: 240,000.00 | I91: 0.00 | J91: 240,000.00 | K91: 0.05
A92: 2 | B92: 2 | C92: 1 | D92: 2 | E92: `01 | F92: Servicios telefónico de larga distancia | H92: 240,000.00 | J92: =SUBTOTAL(9,G92:I92) -> 240,000.00 | K92: =IFERROR(J92/$J$18*100,"0.00") -> 0.05
A93: 2 | B93: 2 | C93: 1 | D93: 3 | F93: Teléfono local | G93: 415,507.92 | H93: 817,054.66 | I93: 0.00 | J93: 1,232,562.58 | K93: 0.28
A94: 2 | B94: 2 | C94: 1 | D94: 3 | E94: `01 | F94: Teléfono local | G94: 415,507.92 | H94: 817,054.66 | J94: =SUBTOTAL(9,G94:I94) -> 1,232,562.58 | K94: =IFERROR(J94/$J$18*100,"0.00") -> 0.28
A95: 2 | B95: 2 | C95: 1 | D95: 4 | F95: Telefax y correos | G95: 0.00 | H95: 86,601.17 | I95: 0.00 | J95: 86,601.17 | K95: 0.02
A96: 2 | B96: 2 | C96: 1 | D96: 4 | E96: `01 | F96: Telefax y correos | H96: 86,601.17 | J96: =SUBTOTAL(9,G96:I96) -> 86,601.17 | K96: =IFERROR(J96/$J$18*100,"0.00") -> 0.02
A97: 2 | B97: 2 | C97: 1 | D97: 5 | F97: Servicio de internet y televisión por cable | G97: 240,000.00 | H97: 0.00 | I97: 0.00 | J97: 240,000.00 | K97: 0.05
A98: 2 | B98: 2 | C98: 1 | D98: 5 | E98: `01 | F98: Servicio de internet y televisión por cable | G98: 240,000.00 | J98: =SUBTOTAL(9,G98:I98) -> 240,000.00 | K98: =IFERROR(J98/$J$18*100,"0.00") -> 0.05
A99: 2 | B99: 2 | C99: 1 | D99: 6 | F99: Electricidad | G99: 0.00 | H99: 0.00 | I99: 0.00 | J99: 0.00 | K99: 0.00
A100: 2 | B100: 2 | C100: 1 | D100: 6 | E100: `01 | F100: Energía eléctrica | J100: =SUBTOTAL(9,G100:I100) -> 0.00 | K100: =IFERROR(J100/$J$18*100,"0.00") -> 0.00
A101: 2 | B101: 2 | C101: 1 | D101: 6 | E101: `02 | F101: Electricidad no cortable | J101: =SUBTOTAL(9,G101:I101) -> 0.00 | K101: =IFERROR(J101/$J$18*100,"0.00") -> 0.00
A102: 2 | B102: 2 | C102: 1 | D102: 7 | F102: Agua | G102: 0.00 | H102: 696,000.00 | I102: 0.00 | J102: 696,000.00 | K102: 0.16
A103: 2 | B103: 2 | C103: 1 | D103: 7 | E103: `01 | F103: Agua | H103: 696,000.00 | J103: =SUBTOTAL(9,G103:I103) -> 696,000.00 | K103: =IFERROR(J103/$J$18*100,"0.00") -> 0.16
A104: 2 | B104: 2 | C104: 1 | D104: 8 | F104: Recolección de residuos sólidos | G104: 0.00 | H104: 60,000.00 | I104: 0.00 | J104: 60,000.00 | K104: 0.01
A105: 2 | B105: 2 | C105: 1 | D105: 8 | E105: `01 | F105: Recolección de residuos sólidos | H105: 60,000.00 | J105: =SUBTOTAL(9,G105:I105) -> 60,000.00 | K105: =IFERROR(J105/$J$18*100,"0.00") -> 0.01
A106: 2 | B106: 2 | C106: 2 | F106: Publicidad Impresión y Encuadernación | G106: 1,226,614.40 | H106: 980,897.00 | I106: 0.00 | J106: 2,207,511.40 | K106: 0.49
A107: 2 | B107: 2 | C107: 2 | D107: 1 | F107: Publicidad y propaganda | G107: 0.00 | H107: 150,000.00 | I107: 0.00 | J107: 150,000.00 | K107: 0.03
A108: 2 | B108: 2 | C108: 2 | D108: 1 | E108: `01 | F108: Publicidad y propaganda | H108: 150,000.00 | J108: =SUBTOTAL(9,G108:I108) -> 150,000.00 | K108: =IFERROR(J108/$J$18*100,"0.00") -> 0.03
A109: 2 | B109: 2 | C109: 2 | D109: 2 | F109: Impresión y encuadernación | G109: 1,226,614.40 | H109: 830,897.00 | I109: 0.00 | J109: 2,057,511.40 | K109: 0.46
A110: 2 | B110: 2 | C110: 2 | D110: 2 | E110: `01 | F110: Impresión y encuadernación | G110: 1,226,614.40 | H110: 830,897.00 | J110: =SUBTOTAL(9,G110:I110) -> 2,057,511.40 | K110: =IFERROR(J110/$J$18*100,"0.00") -> 0.46
A111: 2 | B111: 2 | C111: 3 | F111: Viáticos | G111: 0.00 | H111: 273,800.00 | I111: 0.00 | J111: 273,800.00 | K111: 0.06
A112: 2 | B112: 2 | C112: 3 | D112: 1 | F112: Viáticos dentro del país | G112: 0.00 | H112: 273,800.00 | I112: 0.00 | J112: 273,800.00 | K112: 0.06
A113: 2 | B113: 2 | C113: 3 | D113: 1 | E113: `01 | F113: Viáticos dentro del país | H113: 273,800.00 | J113: =SUBTOTAL(9,G113:I113) -> 273,800.00 | K113: =IFERROR(J113/$J$18*100,"0.00") -> 0.06
A114: 2 | B114: 2 | C114: 3 | D114: 2 | F114: Viáticos fuera del país | G114: 0.00 | H114: 0.00 | I114: 0.00 | J114: 0.00 | K114: 0.00
A115: 2 | B115: 2 | C115: 3 | D115: 2 | E115: `01 | F115: Viáticos fuera del país | J115: =SUBTOTAL(9,G115:I115) -> 0.00 | K115: =IFERROR(J115/$J$18*100,"0.00") -> 0.00
A116: 2 | B116: 2 | C116: 4 | F116: Transporte y Alamcenaje | G116: 0.00 | H116: 562,200.00 | I116: 0.00 | J116: 562,200.00 | K116: 0.13
A117: 2 | B117: 2 | C117: 4 | D117: 1 | F117: Pasajes | G117: 0.00 | H117: 0.00 | I117: 0.00 | J117: 0.00 | K117: 0.00
A118: 2 | B118: 2 | C118: 4 | D118: 1 | E118: `01 | F118: Pasajes | J118: =SUBTOTAL(9,G118:I118) -> 0.00 | K118: =IFERROR(J118/$J$18*100,"0.00") -> 0.00
A119: 2 | B119: 2 | C119: 4 | D119: 2 | F119: Fletes | G119: 0.00 | H119: 492,000.00 | I119: 0.00 | J119: 492,000.00 | K119: 0.11
A120: 2 | B120: 2 | C120: 4 | D120: 2 | E120: `01 | F120: Fletes | H120: 492,000.00 | J120: =SUBTOTAL(9,G120:I120) -> 492,000.00 | K120: =IFERROR(J120/$J$18*100,"0.00") -> 0.11
A121: 2 | B121: 2 | C121: 4 | D121: 3 | F121: Almacenaje | G121: 0.00 | H121: 70,200.00 | I121: 0.00 | J121: 70,200.00 | K121: 0.02
A122: 2 | B122: 2 | C122: 4 | D122: 3 | E122: `01 | F122: Almacenaje | H122: 70,200.00 | J122: =SUBTOTAL(9,G122:I122) -> 70,200.00 | K122: =IFERROR(J122/$J$18*100,"0.00") -> 0.02
A123: 2 | B123: 2 | C123: 4 | D123: 4 | F123: Peaje | G123: 0.00 | H123: 0.00 | I123: 0.00 | J123: 0.00 | K123: 0.00
A124: 2 | B124: 2 | C124: 4 | D124: 4 | E124: `01 | F124: Peaje | J124: =SUBTOTAL(9,G124:I124) -> 0.00 | K124: =IFERROR(J124/$J$18*100,"0.00") -> 0.00
A125: 2 | B125: 2 | C125: 5 | F125: Alquileres y Rentas | G125: 0.00 | H125: 2,055,471.12 | I125: 0.00 | J125: 2,055,471.12 | K125: 0.46
A126: 2 | B126: 2 | C126: 5 | D126: 1 | F126: Alquilleres y rentas de edificios y locales | G126: 0.00 | H126: 0.00 | I126: 0.00 | J126: 0.00 | K126: 0.00
A127: 2 | B127: 2 | C127: 5 | D127: 1 | E127: `01 | F127: Alquilleres y rentas de edificios y locales | J127: =SUBTOTAL(9,G127:I127) -> 0.00 | K127: =IFERROR(J127/$J$18*100,"0.00") -> 0.00
A128: 2 | B128: 2 | C128: 5 | D128: 2 | F128: Alquileres de equipos de producción | G128: 0.00 | H128: 0.00 | I128: 0.00 | J128: 0.00 | K128: 0.00
A129: 2 | B129: 2 | C129: 5 | D129: 2 | E129: `01 | F129: Alquileres de equipos de producción | J129: =SUBTOTAL(9,G129:I129) -> 0.00 | K129: =IFERROR(J129/$J$18*100,"0.00") -> 0.00
A130: 2 | B130: 2 | C130: 5 | D130: 3 | F130: Alquileres de maquinarias y equipos | G130: 0.00 | H130: 396,351.12 | I130: 0.00 | J130: 396,351.12 | K130: 0.09
A131: 2 | B131: 2 | C131: 5 | D131: 3 | E131: `01 | F131: Alquiler de equipo educacional | J131: =SUBTOTAL(9,G131:I131) -> 0.00 | K131: =IFERROR(J131/$J$18*100,"0.00") -> 0.00
A132: 2 | B132: 2 | C132: 5 | D132: 3 | E132: `02 | F132: Alquiler de equipo para computación | H132: 396,351.12 | J132: =SUBTOTAL(9,G132:I132) -> 396,351.12 | K132: =IFERROR(J132/$J$18*100,"0.00") -> 0.09
A133: 2 | B133: 2 | C133: 5 | D133: 3 | E133: `03 | F133: Alquiler de equipo de comunicación | J133: =SUBTOTAL(9,G133:I133) -> 0.00 | K133: =IFERROR(J133/$J$18*100,"0.00") -> 0.00
A134: 2 | B134: 2 | C134: 5 | D134: 3 | E134: `04 | F134: Alquiler de equipo de oficina y muebles | J134: =SUBTOTAL(9,G134:I134) -> 0.00 | K134: =IFERROR(J134/$J$18*100,"0.00") -> 0.00
A135: 2 | B135: 2 | C135: 5 | D135: 3 | E135: `05 | F135: Alquiler de equipos sanitarios y de laboratorios | J135: =SUBTOTAL(9,G135:I135) -> 0.00 | K135: =IFERROR(J135/$J$18*100,"0.00") -> 0.00
A136: 2 | B136: 2 | C136: 5 | D136: 4 | F136: Alquileres de equipos de transporte, tracción y elevación | G136: 0.00 | H136: 99,120.00 | I136: 0.00 | J136: 99,120.00 | K136: 0.02
A137: 2 | B137: 2 | C137: 5 | D137: 4 | E137: `01 | F137: Alquileres de equipos de transporte, tracción y elevación | H137: 99,120.00 | J137: =SUBTOTAL(9,G137:I137) -> 99,120.00 | K137: =IFERROR(J137/$J$18*100,"0.00") -> 0.02
A138: 2 | B138: 2 | C138: 5 | D138: 5 | F138: Alquiler de tierra | G138: =+G139 -> 0.00 | H138: =+H139 -> 0.00 | I138: =+I139 -> 0.00 | J138: =+J139 -> 0.00 | K138: =+K139 -> 0.00
A139: 2 | B139: 2 | C139: 5 | D139: 5 | E139: `01 | F139: Alquiler de tierra | J139: =SUBTOTAL(9,G139:I139) -> 0.00 | K139: =IFERROR(J139/$J$18*100,"0.00") -> 0.00
A140: 2 | B140: 2 | C140: 5 | D140: 6 | F140: Alquileres de Terrenos | G140: 0.00 | H140: 0.00 | I140: 0.00 | J140: 0.00 | K140: 0.00
A141: 2 | B141: 2 | C141: 5 | D141: 6 | E141: `01 | F141: Alquileres de Terrenos | J141: =SUBTOTAL(9,G141:I141) -> 0.00 | K141: =IFERROR(J141/$J$18*100,"0.00") -> 0.00
A142: 2 | B142: 2 | C142: 5 | D142: 7 | F142: Alquileres de equipos de construccion y movimiento de tierra | G142: =+G143 -> 0.00 | H142: =+H143 -> 0.00 | I142: =+I143 -> 0.00 | J142: =+J143 -> 0.00 | K142: =+K143 -> 0.00
A143: 2 | B143: 2 | C143: 5 | D143: 7 | E143: `01 | F143: Alquileres de equipos de construccion y movimiento de tierra | J143: =SUBTOTAL(9,G143:I143) -> 0.00 | K143: =IFERROR(J143/$J$18*100,"0.00") -> 0.00
A144: 2 | B144: 2 | C144: 5 | D144: 8 | F144: Otros alquileres | G144: 0.00 | H144: 1,560,000.00 | I144: 0.00 | J144: 1,560,000.00 | K144: 0.35
A145: 2 | B145: 2 | C145: 5 | D145: 8 | E145: `01 | F145: Otros alquileres | H145: 1,560,000.00 | J145: =SUBTOTAL(9,G145:I145) -> 1,560,000.00 | K145: =IFERROR(J145/$J$18*100,"0.00") -> 0.35
A146: 2 | B146: 2 | C146: 6 | F146: Seguros | G146: 0.00 | H146: 0.00 | I146: 0.00 | J146: 0.00 | K146: 0.00
A147: 2 | B147: 2 | C147: 6 | D147: 1 | F147: Seguro de bienes inmuebles e infraestructura | G147: 0.00 | H147: 0.00 | I147: 0.00 | J147: 0.00 | K147: 0.00
A148: 2 | B148: 2 | C148: 6 | D148: 1 | E148: `01 | F148: Seguro de bienes inmuebles e infraestructura | J148: =SUBTOTAL(9,G148:I148) -> 0.00 | K148: =IFERROR(J148/$J$18*100,"0.00") -> 0.00
A149: 2 | B149: 2 | C149: 6 | D149: 2 | F149: Seguro de bienes muebles | G149: 0.00 | H149: 0.00 | I149: 0.00 | J149: 0.00 | K149: 0.00
A150: 2 | B150: 2 | C150: 6 | D150: 2 | E150: `01 | F150: Seguro de bienes muebles | J150: =SUBTOTAL(9,G150:I150) -> 0.00 | K150: =IFERROR(J150/$J$18*100,"0.00") -> 0.00
A151: 2 | B151: 2 | C151: 6 | D151: 3 | F151: Seguros de personas | G151: 0.00 | H151: 0.00 | I151: 0.00 | J151: 0.00 | K151: 0.00
A152: 2 | B152: 2 | C152: 6 | D152: 3 | E152: `01 | F152: Seguros de personas | J152: =SUBTOTAL(9,G152:I152) -> 0.00 | K152: =IFERROR(J152/$J$18*100,"0.00") -> 0.00
A153: 2 | B153: 2 | C153: 6 | D153: 4 | F153: Seguros de la producción agrícola | G153: 0.00 | H153: 0.00 | I153: 0.00 | J153: 0.00 | K153: 0.00
A154: 2 | B154: 2 | C154: 6 | D154: 4 | E154: `01 | F154: Seguros de la producción agrícola | J154: =SUBTOTAL(9,G154:I154) -> 0.00 | K154: =IFERROR(J154/$J$18*100,"0.00") -> 0.00
A155: 2 | B155: 2 | C155: 6 | D155: 5 | F155: Seguro sobre infraestructura | G155: =+G156 -> 0.00 | H155: =+H156 -> 0.00 | I155: =+I156 -> 0.00 | J155: =+J156 -> 0.00 | K155: =+K156 -> 0.00
A156: 2 | B156: 2 | C156: 6 | D156: 5 | E156: `01 | F156: Seguro sobre infraestructura | J156: =SUBTOTAL(9,G156:I156) -> 0.00 | K156: =IFERROR(J156/$J$18*100,"0.00") -> 0.00
A157: 2 | B157: 2 | C157: 6 | D157: 6 | F157: Seguros sobre bienes de dominio publico | G157: =+G158 -> 0.00 | H157: =+H158 -> 0.00 | I157: =+I158 -> 0.00 | J157: =+J158 -> 0.00 | K157: =+K158 -> 0.00
A158: 2 | B158: 2 | C158: 6 | D158: 6 | E158: `01 | F158: Seguros sobre bienes de dominio publico | J158: =SUBTOTAL(9,G158:I158) -> 0.00 | K158: =IFERROR(J158/$J$18*100,"0.00") -> 0.00
A159: 2 | B159: 2 | C159: 6 | D159: 7 | F159: Seguros sobre bienes historicos y culturales | G159: =+G160 -> 0.00 | H159: =+H160 -> 0.00 | I159: =+I160 -> 0.00 | J159: =+J160 -> 0.00 | K159: =+K160 -> 0.00
A160: 2 | B160: 2 | C160: 6 | D160: 7 | E160: `01 | F160: Seguros sobre bienes historicos y culturales | J160: =SUBTOTAL(9,G160:I160) -> 0.00 | K160: =IFERROR(J160/$J$18*100,"0.00") -> 0.00
A161: 2 | B161: 2 | C161: 6 | D161: 8 | F161: Seguros sobre inventarios de bienes de consumo | G161: =+G162 -> 0.00 | H161: =+H162 -> 0.00 | I161: =+I162 -> 0.00 | J161: =+J162 -> 0.00 | K161: =+K162 -> 0.00
A162: 2 | B162: 2 | C162: 6 | D162: 8 | E162: `01 | F162: Seguros sobre inventarios de bienes de consumo | J162: =SUBTOTAL(9,G162:I162) -> 0.00 | K162: =IFERROR(J162/$J$18*100,"0.00") -> 0.00
A163: 2 | B163: 2 | C163: 6 | D163: 9 | F163: Otros seguros | G163: =+G164 -> 0.00 | H163: =+H164 -> 0.00 | I163: =+I164 -> 0.00 | J163: =+J164 -> 0.00 | K163: =+K164 -> 0.00
A164: 2 | B164: 2 | C164: 6 | D164: 9 | E164: `01 | F164: Otros seguros | J164: =SUBTOTAL(9,G164:I164) -> 0.00 | K164: =IFERROR(J164/$J$18*100,"0.00") -> 0.00
A165: 2 | B165: 2 | C165: 7 | F165: Servicios de Conservación, Reparaciones Menores e Instalaciones Temporales | G165: 0.00 | H165: 4,578,777.79 | I165: 0.00 | J165: 4,578,777.79 | K165: 1.02
A166: 2 | B166: 2 | C166: 7 | D166: 1 | F166: Contrataciones de obras menores | G166: 0.00 | H166: 2,350,000.00 | I166: 0.00 | J166: 2,350,000.00 | K166: 0.52
A167: 2 | B167: 2 | C167: 7 | D167: 1 | E167: `01 | F167: Obras menores en edificaciones | H167: 350,000.00 | J167: =SUBTOTAL(9,G167:I167) -> 350,000.00 | K167: =IFERROR(J167/$J$18*100,"0.00") -> 0.08
A168: 2 | B168: 2 | C168: 7 | D168: 1 | E168: `02 | F168: Servicios especiales de mantenimiento y reparación | H168: 1,500,000.00 | J168: 1,500,000.00 | K168: 0.34
A169: 2 | B169: 2 | C169: 7 | D169: 1 | E169: `03 | F169: Limpieza, desmalezamiento de tierras y terrenos | J169: 0.00 | K169: 0.00
A170: 2 | B170: 2 | C170: 7 | D170: 1 | E170: `04 | F170: Mantenimiento y reparación de obras civiles en instalaciones varias | J170: 0.00 | K170: 0.00
A171: 2 | B171: 2 | C171: 7 | D171: 1 | E171: `05 | F171: Obras en bienes de dominio público | J171: 0.00 | K171: 0.00
A172: 2 | B172: 2 | C172: 7 | D172: 1 | E172: `06 | F172: Instalaciones eléctricas | J172: 0.00 | K172: 0.00
A173: 2 | B173: 2 | C173: 7 | D173: 1 | E173: `07 | F173: Servicios de pintura y derivados con fin de higiene y embellecimiento | H173: 500,000.00 | J173: 500,000.00 | K173: 0.11
A174: 2 | B174: 2 | C174: 7 | D174: 2 | F174: Mantenimientos y reparacion de maquinarias y equipos | G174: 0.00 | H174: 2,228,777.79 | I174: 0.00 | J174: 2,228,777.79 | K174: 0.50
A175: 2 | B175: 2 | C175: 7 | D175: 2 | E175: `01 | F175: Mantenimiento y reparación de equipo de oficina y muebles | J175: =SUBTOTAL(9,G175:I175) -> 0.00 | K175: =IFERROR(J175/$J$18*100,"0.00") -> 0.00
A176: 2 | B176: 2 | C176: 7 | D176: 2 | E176: `02 | F176: Mantenimiento y reparación de equipo para computación | H176: 30,000.00 | J176: 30,000.00 | K176: 0.01
A177: 2 | B177: 2 | C177: 7 | D177: 2 | E177: `03 | F177: Mantenimiento y reparación de equipo de educacional | J177: 0.00 | K177: 0.00
A178: 2 | B178: 2 | C178: 7 | D178: 2 | E178: `04 | F178: Mantenimiento y reparación de equipos sanitarios y de laboratorio | H178: 1,726,537.89 | J178: 1,726,537.89 | K178: 0.39
A179: 2 | B179: 2 | C179: 7 | D179: 2 | E179: `05 | F179: Mantenimiento y reparación de equipos de comunicación | J179: 0.00 | K179: 0.00
A180: 2 | B180: 2 | C180: 7 | D180: 2 | E180: `06 | F180: Mantenimiento y reparación de equipos de transporte, tracción y elevación | H180: 472,239.90 | J180: 472,239.90 | K180: 0.11
A181: 2 | B181: 2 | C181: 7 | D181: 3 | F181: Instalaciones temporales | G181: 0.00 | H181: 0.00 | I181: 0.00 | J181: 0.00 | K181: 0.00
A182: 2 | B182: 2 | C182: 7 | D182: 3 | E182: `01 | F182: Instalaciones temporales | J182: =SUBTOTAL(9,G182:I182) -> 0.00 | K182: =IFERROR(J182/$J$18*100,"0.00") -> 0.00
A183: 2 | B183: 2 | C183: 8 | F183: Otros Servicios No Incluidos en conceptos anteriores | G183: 0.00 | H183: 550,000.00 | I183: 0.00 | J183: 550,000.00 | K183: 0.12
A184: 2 | B184: 2 | C184: 8 | D184: 1 | F184: Gastos judiciales | G184: 0.00 | H184: 0.00 | I184: 0.00 | J184: 0.00 | K184: 0.00
A185: 2 | B185: 2 | C185: 8 | D185: 1 | E185: `01 | F185: Gastos judiciales | J185: =SUBTOTAL(9,G185:I185) -> 0.00 | K185: =IFERROR(J185/$J$18*100,"0.00") -> 0.00
A186: 2 | B186: 2 | C186: 8 | D186: 2 | F186: Comisiones y gastos bancarios | G186: 0.00 | H186: 0.00 | I186: 0.00 | J186: 0.00 | K186: 0.00
A187: 2 | B187: 2 | C187: 8 | D187: 2 | E187: `01 | F187: Comisiones y gastos bancarios | J187: =SUBTOTAL(9,G187:I187) -> 0.00 | K187: =IFERROR(J187/$J$18*100,"0.00") -> 0.00
A188: 2 | B188: 2 | C188: 8 | D188: 3 | F188: Servicios sanitarios médicos y veterinarios | G188: 0.00 | H188: 0.00 | I188: 0.00 | J188: 0.00 | K188: 0.00
A189: 2 | B189: 2 | C189: 8 | D189: 3 | E189: `01 | F189: Servicios sanitarios médicos y veterinarios | J189: =SUBTOTAL(9,G189:I189) -> 0.00 | K189: =IFERROR(J189/$J$18*100,"0.00") -> 0.00
A190: 2 | B190: 2 | C190: 8 | D190: 4 | F190: Servicios funerarios y gastos conexos | G190: 0.00 | H190: 60,000.00 | I190: 0.00 | J190: 60,000.00 | K190: 0.01
A191: 2 | B191: 2 | C191: 8 | D191: 4 | E191: `01 | F191: Servicios funerarios y gastos conexos | H191: 60,000.00 | J191: =SUBTOTAL(9,G191:I191) -> 60,000.00 | K191: =IFERROR(J191/$J$18*100,"0.00") -> 0.01
A192: 2 | B192: 2 | C192: 8 | D192: 5 | F192: Fumigación, lavandería, limpieza e higiene | G192: 0.00 | H192: 0.00 | I192: 0.00 | J192: 0.00 | K192: 0.00
A193: 2 | B193: 2 | C193: 8 | D193: 5 | E193: `01 | F193: Fumigación | J193: =SUBTOTAL(9,G193:I193) -> 0.00 | K193: =IFERROR(J193/$J$18*100,"0.00") -> 0.00
A194: 2 | B194: 2 | C194: 8 | D194: 5 | E194: `02 | F194: Lavandería | J194: =SUBTOTAL(9,G194:I194) -> 0.00 | K194: =IFERROR(J194/$J$18*100,"0.00") -> 0.00
A195: 2 | B195: 2 | C195: 8 | D195: 5 | E195: `03 | F195: Limpieza e higiene | J195: =SUBTOTAL(9,G195:I195) -> 0.00 | K195: =IFERROR(J195/$J$18*100,"0.00") -> 0.00
A196: 2 | B196: 2 | C196: 8 | D196: 6 | F196: Organización de eventos y festividades | G196: 0.00 | H196: 150,000.00 | I196: 0.00 | J196: 150,000.00 | K196: 0.03
A197: 2 | B197: 2 | C197: 8 | D197: 6 | E197: `01 | F197: Eventos generals | H197: 150,000.00 | J197: =SUBTOTAL(9,G197:I197) -> 150,000.00 | K197: =IFERROR(J197/$J$18*100,"0.00") -> 0.03
A198: 2 | B198: 2 | C198: 8 | D198: 6 | E198: `02 | F198: Festividades | J198: =SUBTOTAL(9,G198:I198) -> 0.00 | K198: =IFERROR(J198/$J$18*100,"0.00") -> 0.00
A199: 2 | B199: 2 | C199: 8 | D199: 6 | E199: `03 | F199: Actuaciones deportivas | J199: =SUBTOTAL(9,G199:I199) -> 0.00 | K199: =IFERROR(J199/$J$18*100,"0.00") -> 0.00
A200: 2 | B200: 2 | C200: 8 | D200: 6 | E200: `04 | F200: Actuaciones artísticas | J200: =SUBTOTAL(9,G200:I200) -> 0.00 | K200: =IFERROR(J200/$J$18*100,"0.00") -> 0.00
A201: 2 | B201: 2 | C201: 8 | D201: 7 | F201: Servicios Técnicos y Profesionales | G201: 0.00 | H201: 340,000.00 | I201: 0.00 | J201: 340,000.00 | K201: 0.08
... 313 more rows
